Workbook

Sheet DADOS
A1: 37587 | B1: BM - INSTRUÇÕES DE USO E PREENCHIMENTO
A2: v010
A5: 1. Este documento somente pode ser utilizado nas versões do Excel 2003 ou superior. Não deve ser utilizado versões do BROffice. O Documento deve ser salvo SOMENTE em extensão habilitada para macros (.xls ou .xlsm). Se o documento for salvo na extensão .xlsx, o arquivo será INUTILIZADO.
A7: 2. Para funcionamento pleno desse arquivo, a Segurança de Macros do Excel deve ser habilitada.
B8: 2.1 Na Versão Excel 2003, selecione na Faixa de Opções: Ferramentas --> Macro --> Segurança --> Na aba Nível de Segurança selecione a Opção "Baixo" --> Clique em OK --> Feche e abra o Excel novamente para utilizar a Planilha.
B9: 2.2 Na Versão Excel 2007 ou superior, selecione na Faixa de Opções: Arquivo --> Opções --> Central de Confiabilidade --> Configurações da Central de Confiabilidade --> Configurações de Macro --> Habilitar todas as Macros --> Clique em OK --> Feche e abra o excel novamente para utilizar a Planilha.
A11: 3. O Preenchimento deve ser feito somente nas células em amarelo. As outras células são de preenchimento Automático.
A12: 3.1. O BM identifica automaticamente as metas e macroitens/agrupadores através da estrutura de itens indicada.
A13: 3.2. Caso o nível reconhecido automaticamente não esteja adequado, poderá ser realizado o ajuste manual através da lista suspensa.
A15: 4. Ordem de Preenchimento
A16: 4.1. na Aba DADOS
A17: 4.1.1. Preencha no Quadro abaixo os Dados do TC/CR:
A19: Nº OPERAÇÃO | B19: Nº SICONV | C19: GESTOR | D19: PROGRAMA | F19: AÇÃO / MODALIDADE | I19: RECURSO
A20: 1043.337-13/2017 | B20: 849053/2019 | C20: Min. Des. Regional | D20: Planejamento Urbano | F20: Apoio a política Nacional de Desenvolvimento Urbano | I20: OGU
A22: PROPONENTE / TOMADOR | D22: MUNICÍPIO / UF | E22: LOCALIDADE / ENDEREÇO | F22: APELIDO DO EMPREENDIMENTO
A23: Prefeitura Municipal de Vertentes | D23: Vertentes/PE | E23: Diversas Ruas do Município de Vertentes - PE | F23: Pavimentação em Paralelepípedos
A26: 4.1.2. Preencha no Quadro abaixo os Dados do CTEF:
A28: Nº CTEF | B28: EMPRESA EXECUTORA | D28: CNPJ | E28: OBJETO DO CTEF | I28: INÍCIO DA OBRA
A29: 187/2019 | B29: Barros Construções e Serviços LTDA | D29: 13.962.001/0001-69 | E29: Pavimentação em paralelepípedo granítico de diversas ruas do Município de Vertentes/PE. | I29: 2019-09-03
A31: 4.1.3 Selecione abaixo, o regime de Execução do CTEF:
A33: REGIME DE EXECUÇÃO
A34: Empreitada Integral
A39: 4.1.3. Preencha no Quadro abaixo os Dados do Responsável Técnico pela elaboração do Boletim de Medição:
A42: Nome: | C42: CREA/CAU: | D42: ART/RRT:
A43: Sofia Ximenes Lopes | C43: 1816729965 | D43: PE20190347838
A46: 4.1.4. [Opcional] Preencha no quadro abaixo se houver mais de um Responsável Técnico pela elaboração do Boletim de Medição:
A49: Nome: | C49: CREA/CAU: | D49: ART/RRT:
A52: 4.2. Os dados do orçamento contratado devem ser informados nos campos em amarelo claro da aba BM.
A53: 4.2.1. Para Regime de Empreitada Global ou Integral, devem ser informados somente o Item, Discriminação e Preço Total. Para Regime de Empreitada por Preço Unitário, Tarefa ou Contratação Integrada, informar o Item, Discriminação, Unidade, Quantidade e Preço Unitário.
A54: 4.2.2. É possível importar automaticamente o orçamento do MO27476 (Planilha Orçamentária – PO) por meio do botão Importar PO na aba Dados.
A55: 4.2.3. Os dados também podem ser copiados para o BM utilizando-se o recurso Colar Especial → Colar Valores
A56: 4.2.4. Podem ser adicionadas ou excluídas linhas do BM por meio do botão Editar Planilha.
A57: 4.2.5. O orçamento está adequado para receber estrutura de itens com até 4 níveis (meta, nível 2, nível 3 e nível 4) e um nível de serviços.
A58: 4.2.6. Observação importante: as linhas de metas e macrosserviços (totalizadores) não devem conter dados nas colunas Unid., Qtde. e Preço Unitário.
A59: 4.2.7. Caso o nível reconhecido automaticamente não esteja coerente, deverá ser realizada adequação manual através da lista.
A60: 4.2.8. Caso não tenha sido considerado arrendondamento em algum campo do orçamento, o profissional deverá desmarcar a caixa de seleção logo acima da referente coluna ("Quantidade", "Preço Unitário" e "Preço Total").
A62: 4.3. A cada medição devem ser seguidos os seguintes passos:
A63: · Informar o número da medição no campo Medição;
A64: · Informar a data da medição no campo superior da respectiva coluna no quadro lateral (Medição xx);
A65: · Para os regimes Empreitada por Preço Unitário, Tarefa, Contratação Integrada e Administração Direta: preencher a quantidade executada no período para cada serviço na coluna da respectiva medição no quadro lateral;
A66: · Para Empreitada por Preço Global ou Integral: preencher o percentual executado no período para cada serviço na coluna da respectiva medição no quadro lateral.
A67: · Caso seja necessário um número maior de medições que o constante no quadro (24 medições) ou caso o arquivo seja utilizado para empreendimentos já em execução, deverá ser alterado o número da medição da primeira coluna, devendo ser preenchido com o número da última medição aferida e indicando a evolução acumulada até o período na respectiva coluna. As medições futuras seguirão o procedimento padrão. | Q67: · Para Empreitada por Preço Global ou Integral: preencher o percentual executado no período para cada serviço na coluna da respectiva medição no quadro lateral. | Y67: · Para Empreitada por Preço Global ou Integral: preencher o percentual executado no período para cada serviço na coluna da respectiva medição no quadro lateral. | AG67: · Para Empreitada por Preço Global ou Integral: preencher o percentual executado no período para cada serviço na coluna da respectiva medição no quadro lateral. | AO67: · Para Empreitada por Preço Global ou Integral: preencher o percentual executado no período para cada serviço na coluna da respectiva medição no quadro lateral. | AW67: · Para Empreitada por Preço Global ou Integral: preencher o percentual executado no período para cada serviço na coluna da respectiva medição no quadro lateral. | BE67: · Para Empreitada por Preço Global ou Integral: preencher o percentual executado no período para cada serviço na coluna da respectiva medição no quadro lateral. | BM67: · Para Empreitada por Preço Global ou Integral: preencher o percentual executado no período para cada serviço na coluna da respectiva medição no quadro lateral. | BU67: · Para Empreitada por Preço Global ou Integral: preencher o percentual executado no período para cada serviço na coluna da respectiva medição no quadro lateral. | CC67: · Para Empreitada por Preço Global ou Integral: preencher o percentual executado no período para cada serviço na coluna da respectiva medição no quadro lateral. | CK67: · Para Empreitada por Preço Global ou Integral: preencher o percentual executado no período para cada serviço na coluna da respectiva medição no quadro lateral. | CS67: · Para Empreitada por Preço Global ou Integral: preencher o percentual executado no período para cada serviço na coluna da respectiva medição no quadro lateral. | DA67: · Para Empreitada por Preço Global ou Integral: preencher o percentual executado no período para cada serviço na coluna da respectiva medição no quadro lateral. | DI67: · Para Empreitada por Preço Global ou Integral: preencher o percentual executado no período para cada serviço na coluna da respectiva medição no quadro lateral. | DQ67: · Para Empreitada por Preço Global ou Integral: preencher o percentual executado no período para cada serviço na coluna da respectiva medição no quadro lateral. | DY67: · Para Empreitada por Preço Global ou Integral: preencher o percentual executado no período para cada serviço na coluna da respectiva medição no quadro lateral. | EG67: · Para Empreitada por Preço Global ou Integral: preencher o percentual executado no período para cada serviço na coluna da respectiva medição no quadro lateral. | EO67: · Para Empreitada por Preço Global ou Integral: preencher o percentual executado no período para cada serviço na coluna da respectiva medição no quadro lateral. | EW67: · Para Empreitada por Preço Global ou Integral: preencher o percentual executado no período para cada serviço na coluna da respectiva medição no quadro lateral. | FE67: · Para Empreitada por Preço Global ou Integral: preencher o percentual executado no período para cada serviço na coluna da respectiva medição no quadro lateral. | FM67: · Para Empreitada por Preço Global ou Integral: preencher o percentual executado no período para cada serviço na coluna da respectiva medição no quadro lateral. | FU67: · Para Empreitada por Preço Global ou Integral: preencher o percentual executado no período para cada serviço na coluna da respectiva medição no quadro lateral. | GC67: · Para Empreitada por Preço Global ou Integral: preencher o percentual executado no período para cada serviço na coluna da respectiva medição no quadro lateral. | GK67: · Para Empreitada por Preço Global ou Integral: preencher o percentual executado no período para cada serviço na coluna da respectiva medição no quadro lateral. | GS67: · Para Empreitada por Preço Global ou Integral: preencher o percentual executado no período para cada serviço na coluna da respectiva medição no quadro lateral. | HA67: · Para Empreitada por Preço Global ou Integral: preencher o percentual executado no período para cada serviço na coluna da respectiva medição no quadro lateral. | HI67: · Para Empreitada por Preço Global ou Integral: preencher o percentual executado no período para cada serviço na coluna da respectiva medição no quadro lateral. | HQ67: · Para Empreitada por Preço Global ou Integral: preencher o percentual executado no período para cada serviço na coluna da respectiva medição no quadro lateral. | HY67: · Para Empreitada por Preço Global ou Integral: preencher o percentual executado no período para cada serviço na coluna da respectiva medição no quadro lateral. | IG67: · Para Empreitada por Preço Global ou Integral: preencher o percentual executado no período para cada serviço na coluna da respectiva medição no quadro lateral. | IO67: · Para Empreitada por Preço Global ou Integral: preencher o percentual executado no período para cada serviço na coluna da respectiva medição no quadro lateral.
A69: 4.4. Nas medições em que não houver evolução de determinado serviço, é facultada a manutenção do campo vazio ou preechimento com 0 (zero).
A71: 4.5. Para cada medição (conforme nº informado no campo Medição), os valores da coluna correspondente à medição em questão são apresentados no BM, que calcula os demais dados de evolução física (qtde ou %) e evolução financeira (R$).

Sheet BM
A1: =CHOOSE(1+LOG(1+2*(K1="Meta")+4*(K1="Nível 2")+8*(K1="Nível 3")+16*(K1="Nível 4")+32*(K1="Serviço"),2),0,1,2,3,4,"S") -> S | B1: =IF(OR(A1="S",A1=0),0,IF(ISERROR(I1),H1,SMALL(H1:I1,1))) -> 0 | C1: =IF($A1=1,OFFSET(C1,-1,0)+1,OFFSET(C1,-1,0)) ->  | D1: =IF($A1=1,0,IF($A1=2,OFFSET(D1,-1,0)+1,OFFSET(D1,-1,0))) ->  | E1: =IF(AND($A1<=2,$A1<>0),0,IF($A1=3,OFFSET(E1,-1,0)+1,OFFSET(E1,-1,0))) ->  | F1: =IF(AND($A1<=3,$A1<>0),0,IF($A1=4,OFFSET(F1,-1,0)+1,OFFSET(F1,-1,0))) ->  | G1: =IF(AND($A1<=4,$A1<>0),0,IF($A1="S",OFFSET(G1,-1,0)+1,OFFSET(G1,-1,0))) ->  | H1: =IF(OR($A1="S",$A1=0),0,MATCH(0,OFFSET($B1,1,$A1,ROW($A$124)-ROW($A1)),0)) -> 0 | I1: =IF(OR($A1="S",$A1=0),0,MATCH(OFFSET($B1,0,$A1)+1,OFFSET($B1,1,$A1,ROW($A$124)-ROW($A1)),0)) -> 0 | J1: =LEN(LEFT($L1,LEN($L1)-1*(RIGHT($L1,1)=".")))-LEN(SUBSTITUTE(LEFT($L1,LEN($L1)-1*(RIGHT($L1,1)=".")),".","")) -> 0 | K1: =CHOOSE(1+LOG(1+2*($J1=3)+4*($J1=2)+8*($J1=1)+16*(AND($L1<>"",$L1<>0,$J1=0))+32*OR($N1<>"",RegimeExecucao="Global",AND($L1="",$M1="",$N1="")),2),"","Nível 4","Nível 3","Nível 2","Meta","Serviço") -> Serviço | Q1: =IF($A1="S",0,$R1) -> 0 | R1: =IF($A1="S",IF(RegimeExecucao="Global",ROUND($Q1,arredtot),total),IF($A1=0,0,ROUND(SomaAgrup,arredtot))) -> 0 | S1: =IF(AND($A1="S",COUNTIF($Z$13:$AW$13,mediçao-1)>0),SUM(OFFSET($Z1,0,0,1,MATCH(mediçao-1,$Z$13:$AW$13,0))),IF(AND(RegimeExecucao="Global",$R1>0,COUNTIF($Z$13:$AW$13,mediçao-1)>0),V1/$R1*100,0)) -> 0 | T1: =U1-S1 -> 0 | U1: =IF(AND($A1="S",COUNTIF($Z$13:$AW$13,mediçao)>0),SUM(OFFSET($Z1,0,0,1,MATCH(mediçao,$Z$13:$AW$13,0))),IF(AND(RegimeExecucao="Global",$R1>0,COUNTIF($Z$13:$AW$13,mediçao)>0),X1/$R1*100,0)) -> 0 | V1: =IF($A1="S",VTOTAL,IF($A1=0,0,ROUND(SomaAgrup,arredtot))) -> 0 | W1: =X1-V1 -> 0 | X1: =IF($A1="S",VTOTAL,IF($A1=0,0,ROUND(SomaAgrup,arredtot))) -> 0 | AY1: 0 | AZ1: =BA1-AY1 -> 0 | BA1: 0 | BB1: =IF($A1="S",VTOTAL,IF($A1=0,0,ROUND(SomaAgrup,arredtot))) -> 0 | BC1: =BD1-BB1 -> 0 | BD1: =IF($A1="S",VTOTAL,IF($A1=0,0,ROUND(SomaAgrup,arredtot))) -> 0 | BF1: =IF(BK1>0,L1,"") -> 0 | BH1: =IF(BK1>0,M1,"") -> 0 | BI1: =IF(BK1>0,N1,"") -> 0 | BK1: =IF(BR1>0,CHOOSE(MATCH(RegimeExecucao,{"Unitário","Global"},0),IF($A1="S",BR1/BN1,""),(BR1/BN1)*100),"") ->  | BN1: =IF(BR1>0,CHOOSE(MATCH(RegimeExecucao,{"Unitário","Global"},0),IF($A1="S",ROUND(P1,arredunit),""),ROUND(R1,arredtot)),"") ->  | BR1: =$X1-$BD1 -> 0
C3: Meta | D3: Nível 2 | E3: Nível 3 | F3: Nível 4 | G3: Serviço | O3: TRUE | P3: TRUE | R3: TRUE | S3: TRUE
M5: =IF(CAIXA.modo,"BA - BOLETIM DE AFERIÇÃO CAIXA","BM - BOLETIM DE MEDIÇÃO") -> BM - BOLETIM DE MEDIÇÃO | X5: Grau de Sigilo #PUBLICO | CC5: Motivos das glosas
M6: =IF(Import.RegimeExecução="","PREENCHA O REGIME DE EXECUÇÃO NA ABA DADOS",DADOS!A34) -> Empreitada Integral | CC6: não executado
CC7: não previsto no orçamento
Z8: =numLinhas -> 109 | CC8: material inadequado
Z9: 1 | AA9: 2 | AB9: 3 | AC9: 4 | AD9: 5 | AE9: 6 | AF9: 7 | AG9: 8 | AH9: 9 | AI9: 10 | AJ9: 11 | AK9: 12 | AL9: 13 | AM9: 14 | AN9: 15 | AO9: 16 | AP9: 17 | AQ9: 18 | AR9: 19 | AS9: 20 | AT9: 21 | AU9: 22 | AV9: 23 | AW9: 24 | CC9: desacordo com os projetos
L10: ="Realizado Acumulado: "&TEXT(ROUND(IF(CAIXA.modo,$BD$14,$X$14)/($R$14+10^-12),4),"0,00%") -> Realizado Acumulado: 20,62% | T10: Período: | U10: =IF(INDEX($Z$12:$AW$12,MATCH(mediçao,$Z$13:$AW$13,0))="","SEM DATA",TEXT(IF(mediçao>1,INDEX($Z$12:$AW$12,MATCH(mediçao-1,$Z$13:$AW$13,0)),dataInicioObra),"dd/mm/aaaa")&" a "&TEXT(INDEX($Z$12:$AW$12,MATCH(mediçao,$Z$13:$AW$13,0)),"dd/mm/aaaa")) -> 16/03/2020 a 24/02/2021 | W10: Medição: | X10: 2 | BC10: Medição: | BD10: =mediçao -> 2 | CC10: não atende especificações
I11: =RegimeExecucao -> Global | L11: ="Número de linhas do BM: "&numLinhas -> Número de linhas do BM: 109 | AE11: Datas das Medições | AQ11: Datas das Medições | BF11: Anexo | CC11: qualidade insatisfatória
L12: Orçamento Contratado | S12: ="Evolução Física "&CHOOSE(MATCH(RegimeExecucao,{"Unitário","Global"},0),"(Qtde.)","(%)") -> Evolução Física (%) | V12: Evolução Financeira (R$) | Z12: 2020-03-16 | AA12: 2021-02-24 | AY12: ="Aferição Física "&CHOOSE(MATCH(RegimeExecucao,{"Unitário","Global"},0),"(Qtde.)","(%)") -> Aferição Física (%) | BB12: Aferição Financeira (R$) | BF12: Quadro de Glosas | CC12: ver observações abaixo
A13: Nível | B13: Altura | C13: n1 | D13: n2 | E13: n3 | F13: n4 | G13: n5 | H13: Czero | I13: Cnível | K13: Nível | L13: Item | M13: Discriminação | N13: Unid. | O13: Qtde. | P13: Preço Unitário (R$) | Q13: Preço Total (R$) | R13: Preço Total (R$) | S13: Acum. Anterior | T13: Período | U13: Acum. Incluindo Período | V13: Acum. Anterior | W13: Período | X13: Acum. Incluindo Período | Z13: 1 | AA13: =OFFSET(AA13,0,-1)+1 -> 2 | AB13: =OFFSET(AB13,0,-1)+1 -> 3 | AC13: 4 | AD13: 5 | AE13: 6 | AF13: 7 | AG13: 8 | AH13: 9 | AI13: 10 | AJ13: 11 | AK13: 12 | AL13: 13 | AM13: 14 | AN13: 15 | AO13: 16 | AP13: 17 | AQ13: 18 | AR13: 19 | AS13: 20 | AT13: 21 | AU13: 22 | AV13: 23 | AW13: 24 | AY13: Acum. Anterior | AZ13: Período | BA13: Acum. Incluindo Período | BB13: Acum. Anterior | BC13: Período | BD13: Acum. Incluindo Período | BF13: Item orçam. | BH13: =M13 -> Discriminação | BI13: Unid. | BK13: =CHOOSE(MATCH(RegimeExecucao,{"Unitário","Global"},0),"Quant. Glosada (unid)","Percentual Glosado (%)") -> Percentual Glosado (%) | BN13: =CHOOSE(MATCH(RegimeExecucao,{"Unitário","Global"},0),"Preço Unitário (R$)","Valor Total do Item (R$)") -> Valor Total do Item (R$) | BR13: Valor Total Glosado (R$) | BV13: Motivo da Glosa
B14: =COUNTA(OFFSET(B14,1,0):B$137) -> 110 | O14: TOTAL: | Q14: =$R14 -> 1240000.03 | R14: =SUMIF(OFFSET($K14,1,0):$K124,"serviço",OFFSET(R14,1,0):R$124) -> 1240000.03 | S14: =IF($V$14=0,0,IF(RegimeExecucao="Global",V14/$R14*100,0)) -> 7.858948197 | T14: =U14-S14 -> 12.76069082 | U14: =IF($X$14=0,0,IF(RegimeExecucao="Global",X14/$R14*100,0)) -> 20.61963902 | V14: =SUMIF(OFFSET(K14,1,0):K124,"Serviço",OFFSET(V14,1,0):V$124) -> 97450.96 | W14: =X14-V14 -> 158232.57 | X14: =SUMIF(OFFSET(K14,1,0):K124,"Serviço",OFFSET(X14,1,0):X$124) -> 255683.53 | AC14: ="Preencher abaixo com a "&CHOOSE(MATCH(RegimeExecucao,{"Unitário","Global"},0),"QUANTIDADE","PERCENTAGEM")&" executada no PERÍODO" -> Preencher abaixo com a PERCENTAGEM executada no PERÍODO | AO14: ="Preencher abaixo com a "&CHOOSE(MATCH(RegimeExecucao,{"Unitário","Global"},0),"QUANTIDADE","PERCENTAGEM")&" executada no PERÍODO" -> Preencher abaixo com a PERCENTAGEM executada no PERÍODO | AY14: =IF(BB14=0,0,IF(RegimeExecucao="Global",BB14/$R14*100,0)) -> 0 | AZ14: =BA14-AY14 -> 0 | BA14: =IF(BD14=0,0,IF(RegimeExecucao="Global",BD14/$R14*100,0)) -> 0 | BB14: =SUMIF(OFFSET(K14,1,0):K124,"serviço",OFFSET(BB14,1,0):BB$124) -> 0 | BC14: =BD14-BB14 -> 0 | BD14: =SUMIF(OFFSET($K14,1,0):K124,"serviço",OFFSET(BD14,1,0):BD$124) -> 0 | BH14: TOTAL: | BK14: =IF(BR14=0,0,IF(RegimeExecucao="Global",BR14/$R14*100,0)) -> 20.61963902 | BL14: =IF(BO14=0,0,IF(RegimeExecucao="Global",BO14/$R14*100,0)) -> 0 | BM14: =IF(BP14=0,0,IF(RegimeExecucao="Global",BP14/$R14*100,0)) -> 0 | BN14: =IF(AND($A14="S",BR14>0),CHOOSE(MATCH(RegimeExecucao,{"Unitário","Global"},0),ROUND(P14,arredunit),ROUND(R14,arredtot)),"") ->  | BR14: =$X14-$BD14 -> 255683.53
A15: =CHOOSE(1+LOG(1+2*(K15="Meta")+4*(K15="Nível 2")+8*(K15="Nível 3")+16*(K15="Nível 4")+32*(K15="Serviço"),2),0,1,2,3,4,"S") -> 1 | B15: =IF(OR(A15="S",A15=0),0,IF(ISERROR(I15),H15,SMALL(H15:I15,1))) -> 109 | C15: =IF($A15=1,OFFSET(C15,-1,0)+1,OFFSET(C15,-1,0)) -> 1 | D15: =IF($A15=1,0,IF($A15=2,OFFSET(D15,-1,0)+1,OFFSET(D15,-1,0))) -> 0 | E15: =IF(AND($A15<=2,$A15<>0),0,IF($A15=3,OFFSET(E15,-1,0)+1,OFFSET(E15,-1,0))) -> 0 | F15: =IF(AND($A15<=3,$A15<>0),0,IF($A15=4,OFFSET(F15,-1,0)+1,OFFSET(F15,-1,0))) -> 0 | G15: =IF(AND($A15<=4,$A15<>0),0,IF($A15="S",OFFSET(G15,-1,0)+1,OFFSET(G15,-1,0))) -> 0 | H15: =IF(OR($A15="S",$A15=0),0,MATCH(0,OFFSET($B15,1,$A15,ROW($A$124)-ROW($A15)),0)) -> 109 | I15: =IF(OR($A15="S",$A15=0),0,MATCH(OFFSET($B15,0,$A15)+1,OFFSET($B15,1,$A15,ROW($A$124)-ROW($A15)),0)) ->  | J15: =LEN(LEFT($L15,LEN($L15)-1*(RIGHT($L15,1)=".")))-LEN(SUBSTITUTE(LEFT($L15,LEN($L15)-1*(RIGHT($L15,1)=".")),".","")) -> 0 | K15: Meta | L15: 1. | M15: PAVIMENTACAO DE DIVERSAS RUAS DO MUNICÍPIO DE VERTENTES-PE | O15: 0 | P15: 0 | Q15: 1240000.03 | R15: =IF($A15="S",IF(RegimeExecucao="Global",ROUND($Q15,arredtot),total),IF($A15=0,0,ROUND(SomaAgrup,arredtot))) -> 1240000.03 | S15: =IF(AND($A15="S",COUNTIF($Z$13:$AW$13,mediçao-1)>0),SUM(OFFSET($Z15,0,0,1,MATCH(mediçao-1,$Z$13:$AW$13,0))),IF(AND(RegimeExecucao="Global",$R15>0,COUNTIF($Z$13:$AW$13,mediçao-1)>0),V15/$R15*100,0)) -> 7.858948197 | T15: =U15-S15 -> 12.76069082 | U15: =IF(AND($A15="S",COUNTIF($Z$13:$AW$13,mediçao)>0),SUM(OFFSET($Z15,0,0,1,MATCH(mediçao,$Z$13:$AW$13,0))),IF(AND(RegimeExecucao="Global",$R15>0,COUNTIF($Z$13:$AW$13,mediçao)>0),X15/$R15*100,0)) -> 20.61963902 | V15: =IF($A15="S",VTOTAL,IF($A15=0,0,ROUND(SomaAgrup,arredtot))) -> 97450.96 | W15: =X15-V15 -> 158232.57 | X15: =IF($A15="S",VTOTAL,IF($A15=0,0,ROUND(SomaAgrup,arredtot))) -> 255683.53 | AY15: 0 | AZ15: =BA15-AY15 -> 0 | BA15: 0 | BB15: =IF($A15="S",VTOTAL,IF($A15=0,0,ROUND(SomaAgrup,arredtot))) -> 0 | BC15: =BD15-BB15 -> 0 | BD15: =IF($A15="S",VTOTAL,IF($A15=0,0,ROUND(SomaAgrup,arredtot))) -> 0 | BF15: =IF(BK15>0,L15,"") -> 1. | BH15: =IF(BK15>0,M15,"") -> PAVIMENTACAO DE DIVERSAS RUAS DO MUNICÍPIO DE VERTENTES-PE | BI15: =IF(BK15>0,N15,"") ->  | BK15: =IF(BR15>0,CHOOSE(MATCH(RegimeExecucao,{"Unitário","Global"},0),IF($A15="S",BR15/BN15,""),(BR15/BN15)*100),"") -> 20.61963902 | BN15: =IF(BR15>0,CHOOSE(MATCH(RegimeExecucao,{"Unitário","Global"},0),IF($A15="S",ROUND(P15,arredunit),""),ROUND(R15,arredtot)),"") -> 1240000.03 | BR15: 255683.53
A16: =CHOOSE(1+LOG(1+2*(K16="Meta")+4*(K16="Nível 2")+8*(K16="Nível 3")+16*(K16="Nível 4")+32*(K16="Serviço"),2),0,1,2,3,4,"S") -> 2 | B16: =IF(OR(A16="S",A16=0),0,IF(ISERROR(I16),H16,SMALL(H16:I16,1))) -> 2 | C16: 1 | D16: 1 | E16: 0 | F16: 0 | G16: 0 | H16: 108 | I16: 2 | J16: 1 | K16: Nível 2 | L16: 1.1. | M16: SERVIÇOS PRELIMINARES | O16: 0 | P16: 0 | Q16: 4074.1 | R16: 4074.1 | S16: 0 | T16: 0 | U16: 0 | V16: 0 | W16: =X16-V16 -> 0 | X16: 0 | AY16: 0 | AZ16: =BA16-AY16 -> 0 | BA16: 0 | BB16: 0 | BC16: =BD16-BB16 -> 0 | BD16: 0 | BF16: =IF(BK16>0,L16,"") -> 1.1. | BH16: =IF(BK16>0,M16,"") -> SERVIÇOS PRELIMINARES | BI16: =IF(BK16>0,N16,"") ->  | BK16: =IF(BR16>0,CHOOSE(MATCH(RegimeExecucao,{"Unitário","Global"},0),IF($A16="S",BR16/BN16,""),(BR16/BN16)*100),"") ->  | BN16: =IF(BR16>0,CHOOSE(MATCH(RegimeExecucao,{"Unitário","Global"},0),IF($A16="S",ROUND(P16,arredunit),""),ROUND(R16,arredtot)),"") ->  | BR16: 0
A17: S | B17: 0 | C17: 1 | D17: 1 | E17: 0 | F17: 0 | G17: 1 | H17: 0 | I17: 0 | J17: 3 | K17: Serviço | L17: 1.1.0.1. | M17: PLACA DE OBRA EM CHAPA DE ACO GALVANIZADO | N17: M2 | O17: 10 | P17: 407.41 | Q17: 4074.1 | R17: 4074.1 | S17: 0 | T17: 0 | U17: 0 | V17: 0 | W17: 0 | X17: 0 | AY17: 0 | AZ17: 0 | BA17: 0 | BB17: 0 | BC17: 0 | BD17: 0 | BF17: 1.1.0.1. | BH17: PLACA DE OBRA EM CHAPA DE ACO GALVANIZADO | BI17: M2 | BK17: =IF(BR17>0,CHOOSE(MATCH(RegimeExecucao,{"Unitário","Global"},0),IF($A17="S",BR17/BN17,""),(BR17/BN17)*100),"") ->  | BN17: =IF(BR17>0,CHOOSE(MATCH(RegimeExecucao,{"Unitário","Global"},0),IF($A17="S",ROUND(P17,arredunit),""),ROUND(R17,arredtot)),"") ->  | BR17: 0
A18: 2 | B18: 10 | C18: 1 | D18: 2 | E18: 0 | F18: 0 | G18: 0 | H18: 106 | I18: 10 | J18: 1 | K18: Nível 2 | L18: 1.2. | M18: RUA DE SÃO JOSÉ | O18: 0 | P18: 0 | Q18: 133882.1 | R18: 133882.1 | S18: 72.78864015 | T18: 0 | U18: 72.78864015 | V18: 97450.96 | W18: 0 | X18: 97450.96 | AY18: 0 | AZ18: 0 | BA18: 0 | BB18: 0 | BC18: 0 | BD18: 0 | BF18: 1.2. | BH18: RUA DE SÃO JOSÉ | BK18: =IF(BR18>0,CHOOSE(MATCH(RegimeExecucao,{"Unitário","Global"},0),IF($A18="S",BR18/BN18,""),(BR18/BN18)*100),"") -> 72.78864015 | BN18: =IF(BR18>0,CHOOSE(MATCH(RegimeExecucao,{"Unitário","Global"},0),IF($A18="S",ROUND(P18,arredunit),""),ROUND(R18,arredtot)),"") -> 133882.1 | BR18: 97450.96
A19: 3 | B19: 5 | C19: 1 | D19: 2 | E19: 1 | F19: 0 | G19: 0 | H19: 9 | I19: 5 | J19: 2 | K19: Nível 3 | L19: 1.2.1. | M19: PAVIMENTAÇÃO | O19: 0 | P19: 0 | Q19: 97744.61 | R19: 97744.61 | S19: 99.69957423 | T19: 0 | U19: 99.69957423 | V19: 97450.96 | W19: 0 | X19: 97450.96 | AY19: 0 | AZ19: 0 | BA19: 0 | BB19: 0 | BC19: 0 | BD19: 0 | BF19: 1.2.1. | BH19: PAVIMENTAÇÃO | BK19: =IF(BR19>0,CHOOSE(MATCH(RegimeExecucao,{"Unitário","Global"},0),IF($A19="S",BR19/BN19,""),(BR19/BN19)*100),"") -> 99.69957423 | BN19: =IF(BR19>0,CHOOSE(MATCH(RegimeExecucao,{"Unitário","Global"},0),IF($A19="S",ROUND(P19,arredunit),""),ROUND(R19,arredtot)),"") -> 97744.61 | BR19: 97450.96
A20: S | B20: 0 | C20: 1 | D20: 2 | E20: 1 | F20: 0 | G20: 1 | H20: 0 | I20: 0 | J20: 3 | K20: Serviço | L20: 1.2.1.1. | M20: REGULARIZACAO E COMPACTACAO DE SUBLEITO ATE 20 CM DE ESPESSURA | N20: M2 | O20: 1119.38 | P20: 1.7 | Q20: 1902.95 | R20: 1902.95 | S20: 98.72 | T20: 0 | U20: 98.72 | V20: 1878.59 | W20: 0 | X20: 1878.59 | Z20: 98.72 | AY20: 0 | AZ20: 0 | BA20: 0 | BB20: 0 | BC20: 0 | BD20: 0 | BF20: 1.2.1.1. | BH20: REGULARIZACAO E COMPACTACAO DE SUBLEITO ATE 20 CM DE ESPESSURA | BI20: M2 | BK20: =IF(BR20>0,CHOOSE(MATCH(RegimeExecucao,{"Unitário","Global"},0),IF($A20="S",BR20/BN20,""),(BR20/BN20)*100),"") -> 98.71988229 | BN20: =IF(BR20>0,CHOOSE(MATCH(RegimeExecucao,{"Unitário","Global"},0),IF($A20="S",ROUND(P20,arredunit),""),ROUND(R20,arredtot)),"") -> 1902.95 | BR20: 1878.59
A21: S | B21: 0 | C21: 1 | D21: 2 | E21: 1 | F21: 0 | G21: 2 | H21: 0 | I21: 0 | J21: 3 | K21: Serviço | L21: 1.2.1.2. | M21: ASSENTAMENTO DE GUIA (MEIO-FIO) EM TRECHO RETO, CONFECCIONADA EM CONCRETO PRÉ-FABRICADO, DIMENSÕES 100X15X13X30 CM (COMPRIMENTO X BASE INFERIOR X BASE SUPERIOR X ALTURA), PARA VIAS URBANAS (USO VIÁRIO). AF_06/2016 | N21: M | O21: 448.69 | P21: 40.28 | Q21: 18073.23 | R21: 18073.23 | S21: 98.51 | T21: 0 | U21: 98.51 | V21: 17803.94 | W21: 0 | X21: 17803.94 | Z21: 98.51 | AY21: 0 | AZ21: 0 | BA21: 0 | BB21: 0 | BC21: 0 | BD21: 0 | BF21: 1.2.1.2. | BH21: ASSENTAMENTO DE GUIA (MEIO-FIO) EM TRECHO RETO, CONFECCIONADA EM CONCRETO PRÉ-FABRICADO, DIMENSÕES 100X15X13X30 CM (COMPRIMENTO X BASE INFERIOR X BASE SUPERIOR X ALTURA), PARA VIAS URBANAS (USO VIÁRIO). AF_06/2016 | BI21: M | BK21: =IF(BR21>0,CHOOSE(MATCH(RegimeExecucao,{"Unitário","Global"},0),IF($A21="S",BR21/BN21,""),(BR21/BN21)*100),"") -> 98.51000624 | BN21: =IF(BR21>0,CHOOSE(MATCH(RegimeExecucao,{"Unitário","Global"},0),IF($A21="S",ROUND(P21,arredunit),""),ROUND(R21,arredtot)),"") -> 18073.23 | BR21: 17803.94
A22: S | B22: 0 | C22: 1 | D22: 2 | E22: 1 | F22: 0 | G22: 3 | H22: 0 | I22: 0 | J22: 3 | K22: Serviço | L22: 1.2.1.3. | M22: EXECUÇÃO DE SARJETA DE CONCRETO USINADO, MOLDADA IN LOCO EM TRECHO RETO, 30 CM BASE X 15 CM ALTURA. AF_06/2016 | N22: M | O22: 404.49 | P22: 41.21 | Q22: 16669.03 | R22: 16669.03 | S22: 100 | T22: 0 | U22: 100 | V22: 16669.03 | W22: 0 | X22: 16669.03 | Z22: 100 | AY22: 0 | AZ22: 0 | BA22: 0 | BB22: 0 | BC22: 0 | BD22: 0 | BF22: 1.2.1.3. | BH22: EXECUÇÃO DE SARJETA DE CONCRETO USINADO, MOLDADA IN LOCO EM TRECHO RETO, 30 CM BASE X 15 CM ALTURA. AF_06/2016 | BI22: M | BK22: =IF(BR22>0,CHOOSE(MATCH(RegimeExecucao,{"Unitário","Global"},0),IF($A22="S",BR22/BN22,""),(BR22/BN22)*100),"") -> 100 | BN22: =IF(BR22>0,CHOOSE(MATCH(RegimeExecucao,{"Unitário","Global"},0),IF($A22="S",ROUND(P22,arredunit),""),ROUND(R22,arredtot)),"") -> 16669.03 | BR22: 16669.03
A23: S | B23: 0 | C23: 1 | D23: 2 | E23: 1 | F23: 0 | G23: 4 | H23: 0 | I23: 0 | J23: 3 | K23: Serviço | L23: 1.2.1.4. | M23: PAVIMENTO EM PARALELEPIPEDO SOBRE COLCHAO DE AREIA REJUNTADO COM ARGAMASSA DE CIMENTO E AREIA NO TRAÇO 1:3 (PEDRAS PEQUENAS 30 A 35 PECAS POR M2) | N23: M2 | O23: 998.03 | P23: 61.22 | Q23: 61099.4 | R23: 61099.4 | S23: 100 | T23: 0 | U23: 100 | V23: 61099.4 | W23: 0 | X23: 61099.4 | Z23: 100 | AY23: 0 | AZ23: 0 | BA23: 0 | BB23: 0 | BC23: 0 | BD23: 0 | BF23: 1.2.1.4. | BH23: PAVIMENTO EM PARALELEPIPEDO SOBRE COLCHAO DE AREIA REJUNTADO COM ARGAMASSA DE CIMENTO E AREIA NO TRAÇO 1:3 (PEDRAS PEQUENAS 30 A 35 PECAS POR M2) | BI23: M2 | BK23: =IF(BR23>0,CHOOSE(MATCH(RegimeExecucao,{"Unitário","Global"},0),IF($A23="S",BR23/BN23,""),(BR23/BN23)*100),"") -> 100 | BN23: =IF(BR23>0,CHOOSE(MATCH(RegimeExecucao,{"Unitário","Global"},0),IF($A23="S",ROUND(P23,arredunit),""),ROUND(R23,arredtot)),"") -> 61099.4 | BR23: 61099.4
A24: 3 | B24: 4 | C24: 1 | D24: 2 | E24: 2 | F24: 0 | G24: 0 | H24: 4 | J24: 2 | K24: Nível 3 | L24: 1.2.2. | M24: CALÇADA | O24: 0 | P24: 0 | Q24: =Q25+Q26+Q27 -> 36137.49 | R24: 36137.49 | S24: 0 | T24: 0 | U24: 0 | V24: 0 | W24: 0 | X24: 0 | AY24: 0 | AZ24: 0 | BA24: 0 | BB24: 0 | BC24: 0 | BD24: 0 | BF24: 1.2.2. | BH24: CALÇADA | BK24: =IF(BR24>0,CHOOSE(MATCH(RegimeExecucao,{"Unitário","Global"},0),IF($A24="S",BR24/BN24,""),(BR24/BN24)*100),"") ->  | BN24: =IF(BR24>0,CHOOSE(MATCH(RegimeExecucao,{"Unitário","Global"},0),IF($A24="S",ROUND(P24,arredunit),""),ROUND(R24,arredtot)),"") ->  | BR24: 0
A25: S | B25: 0 | C25: 1 | D25: 2 | E25: 2 | F25: 0 | G25: 1 | H25: 0 | I25: 0 | J25: 3 | K25: Serviço | L25: 1.2.2.1. | M25: PISO PODOTATIL DE CONCRETO - DIRECIONAL E ALERTA, *40 X 40 X 2,5* CM | N25: M2 | O25: 39.6 | P25: 90.58 | Q25: 3586.97 | R25: 3586.97 | S25: 0 | T25: 0 | U25: 0 | V25: 0 | W25: 0 | X25: 0 | AY25: 0 | AZ25: 0 | BA25: 0 | BB25: 0 | BC25: 0 | BD25: 0 | BF25: 1.2.2.1. | BH25: PISO PODOTATIL DE CONCRETO - DIRECIONAL E ALERTA, *40 X 40 X 2,5* CM | BI25: M2 | BK25: =IF(BR25>0,CHOOSE(MATCH(RegimeExecucao,{"Unitário","Global"},0),IF($A25="S",BR25/BN25,""),(BR25/BN25)*100),"") ->  | BN25: =IF(BR25>0,CHOOSE(MATCH(RegimeExecucao,{"Unitário","Global"},0),IF($A25="S",ROUND(P25,arredunit),""),ROUND(R25,arredtot)),"") ->  | BR25: 0
A26: S | B26: 0 | C26: 1 | D26: 2 | E26: 2 | F26: 0 | G26: 2 | H26: 0 | I26: 0 | J26: 3 | K26: Serviço | L26: 1.2.2.2. | M26: ALVENARIA DE EMBASAMENTO EM TIJOLOS CERAMICOS MACICOS 5X10X20CM, ASSENTADO COM ARGAMASSA TRACO 1:2:8 (CIMENTO, CAL E AREIA) | N26: M3 | O26: 7.97 | P26: 696.86 | Q26: 5553.97 | R26: 5553.97 | S26: 0 | T26: 0 | U26: 0 | V26: 0 | W26: 0 | X26: 0 | AY26: 0 | AZ26: 0 | BA26: 0 | BB26: 0 | BC26: 0 | BD26: 0 | BF26: 1.2.2.2. | BH26: ALVENARIA DE EMBASAMENTO EM TIJOLOS CERAMICOS MACICOS 5X10X20CM, ASSENTADO COM ARGAMASSA TRACO 1:2:8 (CIMENTO, CAL E AREIA) | BI26: M3 | BK26: =IF(BR26>0,CHOOSE(MATCH(RegimeExecucao,{"Unitário","Global"},0),IF($A26="S",BR26/BN26,""),(BR26/BN26)*100),"") ->  | BN26: =IF(BR26>0,CHOOSE(MATCH(RegimeExecucao,{"Unitário","Global"},0),IF($A26="S",ROUND(P26,arredunit),""),ROUND(R26,arredtot)),"") ->  | BR26: 0
A27: S | B27: 0 | C27: 1 | D27: 2 | E27: 2 | F27: 0 | G27: 3 | H27: 0 | I27: 0 | J27: 3 | K27: Serviço | L27: 1.2.2.3. | M27: EXECUÇÃO DE PASSEIO (CALÇADA) OU PISO DE CONCRETO COM CONCRETO MOLDADO IN LOCO, FEITO EM OBRA, ACABAMENTO CONVENCIONAL, NÃO ARMADO. AF_07/2016 | N27: M3 | O27: 41.68 | P27: 647.71 | Q27: 26996.55 | R27: 26996.55 | S27: 0 | T27: 0 | U27: 0 | V27: 0 | W27: 0 | X27: 0 | AY27: 0 | AZ27: 0 | BA27: 0 | BB27: 0 | BC27: 0 | BD27: 0 | BF27: 1.2.2.3. | BH27: EXECUÇÃO DE PASSEIO (CALÇADA) OU PISO DE CONCRETO COM CONCRETO MOLDADO IN LOCO, FEITO EM OBRA, ACABAMENTO CONVENCIONAL, NÃO ARMADO. AF_07/2016 | BI27: M3 | BK27: =IF(BR27>0,CHOOSE(MATCH(RegimeExecucao,{"Unitário","Global"},0),IF($A27="S",BR27/BN27,""),(BR27/BN27)*100),"") ->  | BN27: =IF(BR27>0,CHOOSE(MATCH(RegimeExecucao,{"Unitário","Global"},0),IF($A27="S",ROUND(P27,arredunit),""),ROUND(R27,arredtot)),"") ->  | BR27: 0
A28: 2 | B28: 10 | C28: 1 | D28: 3 | E28: 0 | F28: 0 | G28: 0 | H28: 96 | I28: 10 | J28: 1 | K28: Nível 2 | L28: 1.3. | M28: RUA SEVERINO FERREIRA DE ASSUNÇÃO | O28: 0 | P28: 0 | Q28: 211286.29 | R28: 211286.29 | S28: 0 | T28: 16.12151929 | U28: 16.12151929 | V28: 0 | W28: 34062.56 | X28: 34062.56 | AY28: 0 | AZ28: 0 | BA28: 0 | BB28: 0 | BC28: 0 | BD28: 0 | BF28: 1.3. | BH28: RUA SEVERINO FERREIRA DE ASSUNÇÃO | BK28: =IF(BR28>0,CHOOSE(MATCH(RegimeExecucao,{"Unitário","Global"},0),IF($A28="S",BR28/BN28,""),(BR28/BN28)*100),"") -> 16.12151929 | BN28: =IF(BR28>0,CHOOSE(MATCH(RegimeExecucao,{"Unitário","Global"},0),IF($A28="S",ROUND(P28,arredunit),""),ROUND(R28,arredtot)),"") -> 211286.29 | BR28: 34062.56
A29: 3 | B29: 5 | C29: 1 | D29: 3 | E29: 1 | F29: 0 | G29: 0 | H29: 9 | I29: 5 | J29: 2 | K29: Nível 3 | L29: 1.3.1. | M29: PAVIMENTAÇÃO | O29: 0 | P29: 0 | Q29: 149633.05 | R29: 149633.05 | S29: 0 | T29: 22.76406182 | U29: 22.76406182 | V29: 0 | W29: 34062.56 | X29: 34062.56 | AY29: 0 | AZ29: 0 | BA29: 0 | BB29: 0 | BC29: 0 | BD29: 0 | BF29: 1.3.1. | BH29: PAVIMENTAÇÃO | BK29: =IF(BR29>0,CHOOSE(MATCH(RegimeExecucao,{"Unitário","Global"},0),IF($A29="S",BR29/BN29,""),(BR29/BN29)*100),"") -> 22.76406182 | BN29: =IF(BR29>0,CHOOSE(MATCH(RegimeExecucao,{"Unitário","Global"},0),IF($A29="S",ROUND(P29,arredunit),""),ROUND(R29,arredtot)),"") -> 149633.05 | BR29: 34062.56
A30: S | B30: 0 | C30: 1 | D30: 3 | E30: 1 | F30: 0 | G30: 1 | H30: 0 | I30: 0 | J30: 3 | K30: Serviço | L30: 1.3.1.1. | M30: REGULARIZACAO E COMPACTACAO DE SUBLEITO ATE 20 CM DE ESPESSURA | N30: M2 | O30: 1646.14 | P30: 1.7 | Q30: 2798.44 | R30: 2798.44 | S30: 0 | T30: 30.98 | U30: 30.98 | V30: 0 | W30: 866.96 | X30: 866.96 | AA30: 30.98 | AY30: 0 | AZ30: 0 | BA30: 0 | BB30: 0 | BC30: 0 | BD30: 0 | BF30: 1.3.1.1. | BH30: REGULARIZACAO E COMPACTACAO DE SUBLEITO ATE 20 CM DE ESPESSURA | BI30: M2 | BK30: =IF(BR30>0,CHOOSE(MATCH(RegimeExecucao,{"Unitário","Global"},0),IF($A30="S",BR30/BN30,""),(BR30/BN30)*100),"") -> 30.98011749 | BN30: =IF(BR30>0,CHOOSE(MATCH(RegimeExecucao,{"Unitário","Global"},0),IF($A30="S",ROUND(P30,arredunit),""),ROUND(R30,arredtot)),"") -> 2798.44 | BR30: 866.96
A31: S | B31: 0 | C31: 1 | D31: 3 | E31: 1 | F31: 0 | G31: 2 | H31: 0 | I31: 0 | J31: 3 | K31: Serviço | L31: 1.3.1.2. | M31: ASSENTAMENTO DE GUIA (MEIO-FIO) EM TRECHO RETO, CONFECCIONADA EM CONCRETO PRÉ-FABRICADO, DIMENSÕES 100X15X13X30 CM (COMPRIMENTO X BASE INFERIOR X BASE SUPERIOR X ALTURA), PARA VIAS URBANAS (USO VIÁRIO). AF_06/2016 | N31: M | O31: 729.64 | P31: 40.28 | Q31: 29389.9 | R31: 29389.9 | S31: 0 | T31: 19.65 | U31: 19.65 | V31: 0 | W31: 5775.12 | X31: 5775.12 | AA31: 19.65 | AY31: 0 | AZ31: 0 | BA31: 0 | BB31: 0 | BC31: 0 | BD31: 0 | BF31: 1.3.1.2. | BH31: ASSENTAMENTO DE GUIA (MEIO-FIO) EM TRECHO RETO, CONFECCIONADA EM CONCRETO PRÉ-FABRICADO, DIMENSÕES 100X15X13X30 CM (COMPRIMENTO X BASE INFERIOR X BASE SUPERIOR X ALTURA), PARA VIAS URBANAS (USO VIÁRIO). AF_06/2016 | BI31: M | BK31: =IF(BR31>0,CHOOSE(MATCH(RegimeExecucao,{"Unitário","Global"},0),IF($A31="S",BR31/BN31,""),(BR31/BN31)*100),"") -> 19.65001582 | BN31: =IF(BR31>0,CHOOSE(MATCH(RegimeExecucao,{"Unitário","Global"},0),IF($A31="S",ROUND(P31,arredunit),""),ROUND(R31,arredtot)),"") -> 29389.9 | BR31: 5775.12
A32: S | B32: 0 | C32: 1 | D32: 3 | E32: 1 | F32: 0 | G32: 3 | H32: 0 | I32: 0 | J32: 3 | K32: Serviço | L32: 1.3.1.3. | M32: EXECUÇÃO DE SARJETA DE CONCRETO USINADO, MOLDADA IN LOCO EM TRECHO RETO, 30 CM BASE X 15 CM ALTURA. AF_06/2016 | N32: M | O32: 729.64 | P32: 41.21 | Q32: 30068.46 | R32: 30068.46 | S32: 0 | T32: 19.65 | U32: 19.65 | V32: 0 | W32: 5908.45 | X32: 5908.45 | AA32: 19.65 | AY32: 0 | AZ32: 0 | BA32: 0 | BB32: 0 | BC32: 0 | BD32: 0 | BF32: 1.3.1.3. | BH32: EXECUÇÃO DE SARJETA DE CONCRETO USINADO, MOLDADA IN LOCO EM TRECHO RETO, 30 CM BASE X 15 CM ALTURA. AF_06/2016 | BI32: M | BK32: =IF(BR32>0,CHOOSE(MATCH(RegimeExecucao,{"Unitário","Global"},0),IF($A32="S",BR32/BN32,""),(BR32/BN32)*100),"") -> 19.64999205 | BN32: =IF(BR32>0,CHOOSE(MATCH(RegimeExecucao,{"Unitário","Global"},0),IF($A32="S",ROUND(P32,arredunit),""),ROUND(R32,arredtot)),"") -> 30068.46 | BR32: 5908.45
A33: S | B33: 0 | C33: 1 | D33: 3 | E33: 1 | F33: 0 | G33: 4 | H33: 0 | I33: 0 | J33: 3 | K33: Serviço | L33: 1.3.1.4. | M33: PAVIMENTO EM PARALELEPIPEDO SOBRE COLCHAO DE AREIA REJUNTADO COM ARGAMASSA DE CIMENTO E AREIA NO TRAÇO 1:3 (PEDRAS PEQUENAS 30 A 35 PECAS POR M2) | N33: M2 | O33: 1427.25 | P33: 61.22 | Q33: 87376.25 | R33: 87376.25 | S33: 0 | T33: 24.62 | U33: 24.62 | V33: 0 | W33: 21512.03 | X33: 21512.03 | AA33: 24.62 | AY33: 0 | AZ33: 0 | BA33: 0 | BB33: 0 | BC33: 0 | BD33: 0 | BF33: 1.3.1.4. | BH33: PAVIMENTO EM PARALELEPIPEDO SOBRE COLCHAO DE AREIA REJUNTADO COM ARGAMASSA DE CIMENTO E AREIA NO TRAÇO 1:3 (PEDRAS PEQUENAS 30 A 35 PECAS POR M2) | BI33: M2 | BK33: =IF(BR33>0,CHOOSE(MATCH(RegimeExecucao,{"Unitário","Global"},0),IF($A33="S",BR33/BN33,""),(BR33/BN33)*100),"") -> 24.61999685 | BN33: =IF(BR33>0,CHOOSE(MATCH(RegimeExecucao,{"Unitário","Global"},0),IF($A33="S",ROUND(P33,arredunit),""),ROUND(R33,arredtot)),"") -> 87376.25 | BR33: 21512.03
A34: 3 | B34: 4 | C34: 1 | D34: 3 | E34: 2 | F34: 0 | G34: 0 | H34: 4 | J34: 2 | K34: Nível 3 | L34: 1.3.2. | M34: CALÇADA | O34: 0 | P34: 0 | Q34: =Q35+Q36+Q37 -> 61653.24 | R34: 61653.24 | S34: 0 | T34: 0 | U34: 0 | V34: 0 | W34: 0 | X34: 0 | AY34: 0 | AZ34: 0 | BA34: 0 | BB34: 0 | BC34: 0 | BD34: 0 | BF34: 1.3.2. | BH34: CALÇADA | BK34: =IF(BR34>0,CHOOSE(MATCH(RegimeExecucao,{"Unitário","Global"},0),IF($A34="S",BR34/BN34,""),(BR34/BN34)*100),"") ->  | BN34: =IF(BR34>0,CHOOSE(MATCH(RegimeExecucao,{"Unitário","Global"},0),IF($A34="S",ROUND(P34,arredunit),""),ROUND(R34,arredtot)),"") ->  | BR34: 0
A35: S | B35: 0 | C35: 1 | D35: 3 | E35: 2 | F35: 0 | G35: 1 | H35: 0 | I35: 0 | J35: 3 | K35: Serviço | L35: 1.3.2.1. | M35: PISO PODOTATIL DE CONCRETO - DIRECIONAL E ALERTA, *40 X 40 X 2,5* CM | N35: M2 | O35: 28.8 | P35: 90.58 | Q35: 2608.7 | R35: 2608.7 | S35: 0 | T35: 0 | U35: 0 | V35: 0 | W35: 0 | X35: 0 | AY35: 0 | AZ35: 0 | BA35: 0 | BB35: 0 | BC35: 0 | BD35: 0 | BF35: 1.3.2.1. | BH35: PISO PODOTATIL DE CONCRETO - DIRECIONAL E ALERTA, *40 X 40 X 2,5* CM | BI35: M2 | BK35: =IF(BR35>0,CHOOSE(MATCH(RegimeExecucao,{"Unitário","Global"},0),IF($A35="S",BR35/BN35,""),(BR35/BN35)*100),"") ->  | BN35: =IF(BR35>0,CHOOSE(MATCH(RegimeExecucao,{"Unitário","Global"},0),IF($A35="S",ROUND(P35,arredunit),""),ROUND(R35,arredtot)),"") ->  | BR35: 0
A36: S | B36: 0 | C36: 1 | D36: 3 | E36: 2 | F36: 0 | G36: 2 | H36: 0 | I36: 0 | J36: 3 | K36: Serviço | L36: 1.3.2.2. | M36: ALVENARIA DE EMBASAMENTO EM TIJOLOS CERAMICOS MACICOS 5X10X20CM, ASSENTADO COM ARGAMASSA TRACO 1:2:8 (CIMENTO, CAL E AREIA) | N36: M3 | O36: 14.35 | P36: 696.86 | Q36: 9999.94 | R36: 9999.94 | S36: 0 | T36: 0 | U36: 0 | V36: 0 | W36: 0 | X36: 0 | AY36: 0 | AZ36: 0 | BA36: 0 | BB36: 0 | BC36: 0 | BD36: 0 | BF36: 1.3.2.2. | BH36: ALVENARIA DE EMBASAMENTO EM TIJOLOS CERAMICOS MACICOS 5X10X20CM, ASSENTADO COM ARGAMASSA TRACO 1:2:8 (CIMENTO, CAL E AREIA) | BI36: M3 | BK36: =IF(BR36>0,CHOOSE(MATCH(RegimeExecucao,{"Unitário","Global"},0),IF($A36="S",BR36/BN36,""),(BR36/BN36)*100),"") ->  | BN36: =IF(BR36>0,CHOOSE(MATCH(RegimeExecucao,{"Unitário","Global"},0),IF($A36="S",ROUND(P36,arredunit),""),ROUND(R36,arredtot)),"") ->  | BR36: 0
A37: =CHOOSE(1+LOG(1+2*(K37="Meta")+4*(K37="Nível 2")+8*(K37="Nível 3")+16*(K37="Nível 4")+32*(K37="Serviço"),2),0,1,2,3,4,"S") -> S | B37: =IF(OR(A37="S",A37=0),0,IF(ISERROR(I37),H37,SMALL(H37:I37,1))) -> 0 | C37: 1 | D37: 3 | E37: 2 | F37: 0 | G37: 3 | H37: 0 | I37: 0 | J37: 3 | K37: Serviço | L37: 1.3.2.3. | M37: EXECUÇÃO DE PASSEIO (CALÇADA) OU PISO DE CONCRETO COM CONCRETO MOLDADO IN LOCO, FEITO EM OBRA, ACABAMENTO CONVENCIONAL, NÃO ARMADO. AF_07/2016 | N37: M3 | O37: 75.72 | P37: 647.71 | Q37: 49044.6 | R37: 49044.6 | S37: =IF(AND($A37="S",COUNTIF($Z$13:$AW$13,mediçao-1)>0),SUM(OFFSET($Z37,0,0,1,MATCH(mediçao-1,$Z$13:$AW$13,0))),IF(AND(RegimeExecucao="Global",$R37>0,COUNTIF($Z$13:$AW$13,mediçao-1)>0),V37/$R37*100,0)) -> 0 | T37: =U37-S37 -> 0 | U37: =IF(AND($A37="S",COUNTIF($Z$13:$AW$13,mediçao)>0),SUM(OFFSET($Z37,0,0,1,MATCH(mediçao,$Z$13:$AW$13,0))),IF(AND(RegimeExecucao="Global",$R37>0,COUNTIF($Z$13:$AW$13,mediçao)>0),X37/$R37*100,0)) -> 0 | V37: 0 | W37: =X37-V37 -> 0 | X37: 0 | AY37: 0 | AZ37: =BA37-AY37 -> 0 | BA37: 0 | BB37: 0 | BC37: =BD37-BB37 -> 0 | BD37: 0 | BF37: =IF(BK37>0,L37,"") -> 1.3.2.3. | BH37: =IF(BK37>0,M37,"") -> EXECUÇÃO DE PASSEIO (CALÇADA) OU PISO DE CONCRETO COM CONCRETO MOLDADO IN LOCO, FEITO EM OBRA, ACABAMENTO CONVENCIONAL, NÃO ARMADO. AF_07/2016 | BI37: =IF(BK37>0,N37,"") -> M3 | BK37: =IF(BR37>0,CHOOSE(MATCH(RegimeExecucao,{"Unitário","Global"},0),IF($A37="S",BR37/BN37,""),(BR37/BN37)*100),"") ->  | BN37: =IF(BR37>0,CHOOSE(MATCH(RegimeExecucao,{"Unitário","Global"},0),IF($A37="S",ROUND(P37,arredunit),""),ROUND(R37,arredtot)),"") ->  | BR37: 0
A38: 2 | B38: 10 | C38: 1 | D38: 4 | E38: 0 | F38: 0 | G38: 0 | H38: 86 | I38: 10 | J38: 1 | K38: Nível 2 | L38: 1.4. | M38: RUA FERNANDO ANTÔNIO DE OLIVEIRA | O38: 0 | P38: 0 | Q38: =Q39+Q44 -> 223971.77 | R38: 223971.77 | S38: 0 | T38: 55.44002711 | U38: 55.44002711 | V38: 0 | W38: 124170.01 | X38: 124170.01 | AY38: 0 | AZ38: 0 | BA38: 0 | BB38: 0 | BC38: 0 | BD38: 0 | BF38: 1.4. | BH38: RUA FERNANDO ANTÔNIO DE OLIVEIRA | BK38: =IF(BR38>0,CHOOSE(MATCH(RegimeExecucao,{"Unitário","Global"},0),IF($A38="S",BR38/BN38,""),(BR38/BN38)*100),"") -> 55.44002711 | BN38: =IF(BR38>0,CHOOSE(MATCH(RegimeExecucao,{"Unitário","Global"},0),IF($A38="S",ROUND(P38,arredunit),""),ROUND(R38,arredtot)),"") -> 223971.77 | BR38: 124170.01
A39: 3 | B39: 5 | C39: 1 | D39: 4 | E39: 1 | F39: 0 | G39: 0 | H39: 9 | I39: 5 | J39: 2 | K39: Nível 3 | L39: 1.4.1. | M39: PAVIMENTAÇÃO | O39: 0 | P39: 0 | Q39: 166001.81 | R39: 166001.81 | S39: 0 | T39: 74.80039525 | U39: 74.80039525 | V39: 0 | W39: 124170.01 | X39: 124170.01 | AY39: 0 | AZ39: 0 | BA39: 0 | BB39: 0 | BC39: 0 | BD39: 0 | BF39: 1.4.1. | BH39: PAVIMENTAÇÃO | BK39: =IF(BR39>0,CHOOSE(MATCH(RegimeExecucao,{"Unitário","Global"},0),IF($A39="S",BR39/BN39,""),(BR39/BN39)*100),"") -> 74.80039525 | BN39: =IF(BR39>0,CHOOSE(MATCH(RegimeExecucao,{"Unitário","Global"},0),IF($A39="S",ROUND(P39,arredunit),""),ROUND(R39,arredtot)),"") -> 166001.81 | BR39: 124170.01
A40: S | B40: 0 | C40: 1 | D40: 4 | E40: 1 | F40: 0 | G40: 1 | H40: 0 | I40: 0 | J40: 3 | K40: Serviço | L40: 1.4.1.1. | M40: REGULARIZACAO E COMPACTACAO DE SUBLEITO ATE 20 CM DE ESPESSURA | N40: M2 | O40: 1791.06 | P40: 1.7 | Q40: 3044.8 | R40: 3044.8 | S40: 0 | T40: 72.58 | U40: 72.58 | V40: 0 | W40: 2209.92 | X40: 2209.92 | AA40: 72.58 | AY40: 0 | AZ40: 0 | BA40: 0 | BB40: 0 | BC40: 0 | BD40: 0 | BF40: 1.4.1.1. | BH40: REGULARIZACAO E COMPACTACAO DE SUBLEITO ATE 20 CM DE ESPESSURA | BI40: M2 | BK40: =IF(BR40>0,CHOOSE(MATCH(RegimeExecucao,{"Unitário","Global"},0),IF($A40="S",BR40/BN40,""),(BR40/BN40)*100),"") -> 72.58013663 | BN40: =IF(BR40>0,CHOOSE(MATCH(RegimeExecucao,{"Unitário","Global"},0),IF($A40="S",ROUND(P40,arredunit),""),ROUND(R40,arredtot)),"") -> 3044.8 | BR40: 2209.92
A41: S | B41: 0 | C41: 1 | D41: 4 | E41: 1 | F41: 0 | G41: 2 | H41: 0 | I41: 0 | J41: 3 | K41: Serviço | L41: 1.4.1.2. | M41: ASSENTAMENTO DE GUIA (MEIO-FIO) EM TRECHO RETO, CONFECCIONADA EM CONCRETO PRÉ-FABRICADO, DIMENSÕES 100X15X13X30 CM (COMPRIMENTO X BASE INFERIOR X BASE SUPERIOR X ALTURA), PARA VIAS URBANAS (USO VIÁRIO). AF_06/2016 | N41: M | O41: 856.84 | P41: 40.28 | Q41: 34513.52 | R41: 34513.52 | S41: 0 | T41: 60.69 | U41: 60.69 | V41: 0 | W41: 20946.26 | X41: 20946.26 | AA41: 60.69 | AY41: 0 | AZ41: 0 | BA41: 0 | BB41: 0 | BC41: 0 | BD41: 0 | BF41: 1.4.1.2. | BH41: ASSENTAMENTO DE GUIA (MEIO-FIO) EM TRECHO RETO, CONFECCIONADA EM CONCRETO PRÉ-FABRICADO, DIMENSÕES 100X15X13X30 CM (COMPRIMENTO X BASE INFERIOR X BASE SUPERIOR X ALTURA), PARA VIAS URBANAS (USO VIÁRIO). AF_06/2016 | BI41: M | BK41: =IF(BR41>0,CHOOSE(MATCH(RegimeExecucao,{"Unitário","Global"},0),IF($A41="S",BR41/BN41,""),(BR41/BN41)*100),"") -> 60.69001365 | BN41: =IF(BR41>0,CHOOSE(MATCH(RegimeExecucao,{"Unitário","Global"},0),IF($A41="S",ROUND(P41,arredunit),""),ROUND(R41,arredtot)),"") -> 34513.52 | BR41: 20946.26
A42: S | B42: 0 | C42: 1 | D42: 4 | E42: 1 | F42: 0 | G42: 3 | H42: 0 | I42: 0 | J42: 3 | K42: Serviço | L42: 1.4.1.3. | M42: EXECUÇÃO DE SARJETA DE CONCRETO USINADO, MOLDADA IN LOCO EM TRECHO RETO, 30 CM BASE X 15 CM ALTURA. AF_06/2016 | N42: M | O42: 822.74 | P42: 41.21 | Q42: 33905.12 | R42: 33905.12 | S42: 0 | T42: 63.21 | U42: 63.21 | V42: 0 | W42: 21431.43 | X42: 21431.43 | AA42: 63.21 | AY42: 0 | AZ42: 0 | BA42: 0 | BB42: 0 | BC42: 0 | BD42: 0 | BF42: 1.4.1.3. | BH42: EXECUÇÃO DE SARJETA DE CONCRETO USINADO, MOLDADA IN LOCO EM TRECHO RETO, 30 CM BASE X 15 CM ALTURA. AF_06/2016 | BI42: M | BK42: =IF(BR42>0,CHOOSE(MATCH(RegimeExecucao,{"Unitário","Global"},0),IF($A42="S",BR42/BN42,""),(BR42/BN42)*100),"") -> 63.21001076 | BN42: =IF(BR42>0,CHOOSE(MATCH(RegimeExecucao,{"Unitário","Global"},0),IF($A42="S",ROUND(P42,arredunit),""),ROUND(R42,arredtot)),"") -> 33905.12 | BR42: 21431.43
A43: S | B43: 0 | C43: 1 | D43: 4 | E43: 1 | F43: 0 | G43: 4 | H43: 0 | I43: 0 | J43: 3 | K43: Serviço | L43: 1.4.1.4. | M43: PAVIMENTO EM PARALELEPIPEDO SOBRE COLCHAO DE AREIA REJUNTADO COM ARGAMASSA DE CIMENTO E AREIA NO TRAÇO 1:3 (PEDRAS PEQUENAS 30 A 35 PECAS POR M2) | N43: M2 | O43: 1544.24 | P43: 61.22 | Q43: 94538.37 | R43: 94538.37 | S43: 0 | T43: 84.18 | U43: 84.18 | V43: 0 | W43: 79582.4 | X43: 79582.4 | AA43: 84.18 | AY43: 0 | AZ43: 0 | BA43: 0 | BB43: 0 | BC43: 0 | BD43: 0 | BF43: 1.4.1.4. | BH43: PAVIMENTO EM PARALELEPIPEDO SOBRE COLCHAO DE AREIA REJUNTADO COM ARGAMASSA DE CIMENTO E AREIA NO TRAÇO 1:3 (PEDRAS PEQUENAS 30 A 35 PECAS POR M2) | BI43: M2 | BK43: =IF(BR43>0,CHOOSE(MATCH(RegimeExecucao,{"Unitário","Global"},0),IF($A43="S",BR43/BN43,""),(BR43/BN43)*100),"") -> 84.18000014 | BN43: =IF(BR43>0,CHOOSE(MATCH(RegimeExecucao,{"Unitário","Global"},0),IF($A43="S",ROUND(P43,arredunit),""),ROUND(R43,arredtot)),"") -> 94538.37 | BR43: 79582.4
A44: 3 | B44: 4 | C44: 1 | D44: 4 | E44: 2 | F44: 0 | G44: 0 | H44: 4 | J44: 2 | K44: Nível 3 | L44: 1.4.2. | M44: CALÇADA | O44: 0 | P44: 0 | Q44: =Q45+Q46+Q47 -> 57969.96 | R44: 57969.96 | S44: 0 | T44: 0 | U44: 0 | V44: 0 | W44: 0 | X44: 0 | AY44: 0 | AZ44: 0 | BA44: 0 | BB44: 0 | BC44: 0 | BD44: 0 | BF44: 1.4.2. | BH44: CALÇADA | BK44: =IF(BR44>0,CHOOSE(MATCH(RegimeExecucao,{"Unitário","Global"},0),IF($A44="S",BR44/BN44,""),(BR44/BN44)*100),"") ->  | BN44: =IF(BR44>0,CHOOSE(MATCH(RegimeExecucao,{"Unitário","Global"},0),IF($A44="S",ROUND(P44,arredunit),""),ROUND(R44,arredtot)),"") ->  | BR44: 0
A45: S | B45: 0 | C45: 1 | D45: 4 | E45: 2 | F45: 0 | G45: 1 | H45: 0 | I45: 0 | J45: 3 | K45: Serviço | L45: 1.4.2.1. | M45: PISO PODOTATIL DE CONCRETO - DIRECIONAL E ALERTA, *40 X 40 X 2,5* CM | N45: M2 | O45: 34.32 | P45: 90.58 | Q45: 3108.71 | R45: 3108.71 | S45: 0 | T45: 0 | U45: 0 | V45: 0 | W45: 0 | X45: 0 | AY45: 0 | AZ45: 0 | BA45: 0 | BB45: 0 | BC45: 0 | BD45: 0 | BF45: 1.4.2.1. | BH45: PISO PODOTATIL DE CONCRETO - DIRECIONAL E ALERTA, *40 X 40 X 2,5* CM | BI45: M2 | BK45: =IF(BR45>0,CHOOSE(MATCH(RegimeExecucao,{"Unitário","Global"},0),IF($A45="S",BR45/BN45,""),(BR45/BN45)*100),"") ->  | BN45: =IF(BR45>0,CHOOSE(MATCH(RegimeExecucao,{"Unitário","Global"},0),IF($A45="S",ROUND(P45,arredunit),""),ROUND(R45,arredtot)),"") ->  | BR45: 0
A46: S | B46: 0 | C46: 1 | D46: 4 | E46: 2 | F46: 0 | G46: 2 | H46: 0 | I46: 0 | J46: 3 | K46: Serviço | L46: 1.4.2.2. | M46: ALVENARIA DE EMBASAMENTO EM TIJOLOS CERAMICOS MACICOS 5X10X20CM, ASSENTADO COM ARGAMASSA TRACO 1:2:8 (CIMENTO, CAL E AREIA) | N46: M3 | O46: 15.95 | P46: 696.86 | Q46: 11114.92 | R46: 11114.92 | S46: 0 | T46: 0 | U46: 0 | V46: 0 | W46: 0 | X46: 0 | AY46: 0 | AZ46: 0 | BA46: 0 | BB46: 0 | BC46: 0 | BD46: 0 | BF46: 1.4.2.2. | BH46: ALVENARIA DE EMBASAMENTO EM TIJOLOS CERAMICOS MACICOS 5X10X20CM, ASSENTADO COM ARGAMASSA TRACO 1:2:8 (CIMENTO, CAL E AREIA) | BI46: M3 | BK46: =IF(BR46>0,CHOOSE(MATCH(RegimeExecucao,{"Unitário","Global"},0),IF($A46="S",BR46/BN46,""),(BR46/BN46)*100),"") ->  | BN46: =IF(BR46>0,CHOOSE(MATCH(RegimeExecucao,{"Unitário","Global"},0),IF($A46="S",ROUND(P46,arredunit),""),ROUND(R46,arredtot)),"") ->  | BR46: 0
A47: S | B47: 0 | C47: 1 | D47: 4 | E47: 2 | F47: 0 | G47: 3 | H47: 0 | I47: 0 | J47: 3 | K47: Serviço | L47: 1.4.2.3. | M47: EXECUÇÃO DE PASSEIO (CALÇADA) OU PISO DE CONCRETO COM CONCRETO MOLDADO IN LOCO, FEITO EM OBRA, ACABAMENTO CONVENCIONAL, NÃO ARMADO. AF_07/2016 | N47: M3 | O47: 67.54 | P47: 647.71 | Q47: 43746.33 | R47: 43746.33 | S47: 0 | T47: 0 | U47: 0 | V47: 0 | W47: 0 | X47: 0 | AY47: 0 | AZ47: 0 | BA47: 0 | BB47: 0 | BC47: 0 | BD47: 0 | BF47: 1.4.2.3. | BH47: EXECUÇÃO DE PASSEIO (CALÇADA) OU PISO DE CONCRETO COM CONCRETO MOLDADO IN LOCO, FEITO EM OBRA, ACABAMENTO CONVENCIONAL, NÃO ARMADO. AF_07/2016 | BI47: M3 | BK47: =IF(BR47>0,CHOOSE(MATCH(RegimeExecucao,{"Unitário","Global"},0),IF($A47="S",BR47/BN47,""),(BR47/BN47)*100),"") ->  | BN47: =IF(BR47>0,CHOOSE(MATCH(RegimeExecucao,{"Unitário","Global"},0),IF($A47="S",ROUND(P47,arredunit),""),ROUND(R47,arredtot)),"") ->  | BR47: 0
A48: 2 | B48: 10 | C48: 1 | D48: 5 | E48: 0 | F48: 0 | G48: 0 | H48: 76 | I48: 10 | J48: 1 | K48: Nível 2 | L48: 1.5. | M48: RUA HELENO JOSÉ DE MOURA | O48: 0 | P48: 0 | Q48: 57799.97 | R48: 57799.97 | S48: 0 | T48: 0 | U48: 0 | V48: 0 | W48: 0 | X48: 0 | AY48: 0 | AZ48: 0 | BA48: 0 | BB48: 0 | BC48: 0 | BD48: 0 | BF48: 1.5. | BH48: RUA HELENO JOSÉ DE MOURA | BK48: =IF(BR48>0,CHOOSE(MATCH(RegimeExecucao,{"Unitário","Global"},0),IF($A48="S",BR48/BN48,""),(BR48/BN48)*100),"") ->  | BN48: =IF(BR48>0,CHOOSE(MATCH(RegimeExecucao,{"Unitário","Global"},0),IF($A48="S",ROUND(P48,arredunit),""),ROUND(R48,arredtot)),"") ->  | BR48: 0
A49: 3 | B49: 5 | C49: 1 | D49: 5 | E49: 1 | F49: 0 | G49: 0 | H49: 9 | I49: 5 | J49: 2 | K49: Nível 3 | L49: 1.5.1. | M49: PAVIMENTAÇÃO | O49: 0 | P49: 0 | Q49: =Q50+Q51+Q52+Q53 -> 41913.61 | R49: 41913.61 | S49: 0 | T49: 0 | U49: 0 | V49: 0 | W49: 0 | X49: 0 | AY49: 0 | AZ49: 0 | BA49: 0 | BB49: 0 | BC49: 0 | BD49: 0 | BF49: 1.5.1. | BH49: PAVIMENTAÇÃO | BK49: =IF(BR49>0,CHOOSE(MATCH(RegimeExecucao,{"Unitário","Global"},0),IF($A49="S",BR49/BN49,""),(BR49/BN49)*100),"") ->  | BN49: =IF(BR49>0,CHOOSE(MATCH(RegimeExecucao,{"Unitário","Global"},0),IF($A49="S",ROUND(P49,arredunit),""),ROUND(R49,arredtot)),"") ->  | BR49: 0
A50: S | B50: 0 | C50: 1 | D50: 5 | E50: 1 | F50: 0 | G50: 1 | H50: 0 | I50: 0 | J50: 3 | K50: Serviço | L50: 1.5.1.1. | M50: REGULARIZACAO E COMPACTACAO DE SUBLEITO ATE 20 CM DE ESPESSURA | N50: M2 | O50: 471.6 | P50: 1.7 | Q50: 801.72 | R50: 801.72 | S50: 0 | T50: 0 | U50: 0 | V50: 0 | W50: 0 | X50: 0 | AY50: 0 | AZ50: 0 | BA50: 0 | BB50: 0 | BC50: 0 | BD50: 0 | BF50: 1.5.1.1. | BH50: REGULARIZACAO E COMPACTACAO DE SUBLEITO ATE 20 CM DE ESPESSURA | BI50: M2 | BK50: =IF(BR50>0,CHOOSE(MATCH(RegimeExecucao,{"Unitário","Global"},0),IF($A50="S",BR50/BN50,""),(BR50/BN50)*100),"") ->  | BN50: =IF(BR50>0,CHOOSE(MATCH(RegimeExecucao,{"Unitário","Global"},0),IF($A50="S",ROUND(P50,arredunit),""),ROUND(R50,arredtot)),"") ->  | BR50: 0
A51: S | B51: 0 | C51: 1 | D51: 5 | E51: 1 | F51: 0 | G51: 2 | H51: 0 | I51: 0 | J51: 3 | K51: Serviço | L51: 1.5.1.2. | M51: ASSENTAMENTO DE GUIA (MEIO-FIO) EM TRECHO RETO, CONFECCIONADA EM CONCRETO PRÉ-FABRICADO, DIMENSÕES 100X15X13X30 CM (COMPRIMENTO X BASE INFERIOR X BASE SUPERIOR X ALTURA), PARA VIAS URBANAS (USO VIÁRIO). AF_06/2016 | N51: M | O51: 196.9 | P51: 40.28 | Q51: 7931.13 | R51: 7931.13 | S51: 0 | T51: 0 | U51: 0 | V51: 0 | W51: 0 | X51: 0 | AY51: 0 | AZ51: 0 | BA51: 0 | BB51: 0 | BC51: 0 | BD51: 0 | BF51: 1.5.1.2. | BH51: ASSENTAMENTO DE GUIA (MEIO-FIO) EM TRECHO RETO, CONFECCIONADA EM CONCRETO PRÉ-FABRICADO, DIMENSÕES 100X15X13X30 CM (COMPRIMENTO X BASE INFERIOR X BASE SUPERIOR X ALTURA), PARA VIAS URBANAS (USO VIÁRIO). AF_06/2016 | BI51: M | BK51: =IF(BR51>0,CHOOSE(MATCH(RegimeExecucao,{"Unitário","Global"},0),IF($A51="S",BR51/BN51,""),(BR51/BN51)*100),"") ->  | BN51: =IF(BR51>0,CHOOSE(MATCH(RegimeExecucao,{"Unitário","Global"},0),IF($A51="S",ROUND(P51,arredunit),""),ROUND(R51,arredtot)),"") ->  | BR51: 0
A52: S | B52: 0 | C52: 1 | D52: 5 | E52: 1 | F52: 0 | G52: 3 | H52: 0 | I52: 0 | J52: 3 | K52: Serviço | L52: 1.5.1.3. | M52: EXECUÇÃO DE SARJETA DE CONCRETO USINADO, MOLDADA IN LOCO EM TRECHO RETO, 30 CM BASE X 15 CM ALTURA. AF_06/2016 | N52: M | O52: 188.64 | P52: 41.21 | Q52: 7773.85 | R52: 7773.85 | S52: 0 | T52: 0 | U52: 0 | V52: 0 | W52: 0 | X52: 0 | AY52: 0 | AZ52: 0 | BA52: 0 | BB52: 0 | BC52: 0 | BD52: 0 | BF52: 1.5.1.3. | BH52: EXECUÇÃO DE SARJETA DE CONCRETO USINADO, MOLDADA IN LOCO EM TRECHO RETO, 30 CM BASE X 15 CM ALTURA. AF_06/2016 | BI52: M | BK52: =IF(BR52>0,CHOOSE(MATCH(RegimeExecucao,{"Unitário","Global"},0),IF($A52="S",BR52/BN52,""),(BR52/BN52)*100),"") ->  | BN52: =IF(BR52>0,CHOOSE(MATCH(RegimeExecucao,{"Unitário","Global"},0),IF($A52="S",ROUND(P52,arredunit),""),ROUND(R52,arredtot)),"") ->  | BR52: 0
A53: S | B53: 0 | C53: 1 | D53: 5 | E53: 1 | F53: 0 | G53: 4 | H53: 0 | I53: 0 | J53: 3 | K53: Serviço | L53: 1.5.1.4. | M53: PAVIMENTO EM PARALELEPIPEDO SOBRE COLCHAO DE AREIA REJUNTADO COM ARGAMASSA DE CIMENTO E AREIA NO TRAÇO 1:3 (PEDRAS PEQUENAS 30 A 35 PECAS POR M2) | N53: M2 | O53: 415.01 | P53: 61.22 | Q53: 25406.91 | R53: 25406.91 | S53: 0 | T53: 0 | U53: 0 | V53: 0 | W53: 0 | X53: 0 | AY53: 0 | AZ53: 0 | BA53: 0 | BB53: 0 | BC53: 0 | BD53: 0 | BF53: 1.5.1.4. | BH53: PAVIMENTO EM PARALELEPIPEDO SOBRE COLCHAO DE AREIA REJUNTADO COM ARGAMASSA DE CIMENTO E AREIA NO TRAÇO 1:3 (PEDRAS PEQUENAS 30 A 35 PECAS POR M2) | BI53: M2 | BK53: =IF(BR53>0,CHOOSE(MATCH(RegimeExecucao,{"Unitário","Global"},0),IF($A53="S",BR53/BN53,""),(BR53/BN53)*100),"") ->  | BN53: =IF(BR53>0,CHOOSE(MATCH(RegimeExecucao,{"Unitário","Global"},0),IF($A53="S",ROUND(P53,arredunit),""),ROUND(R53,arredtot)),"") ->  | BR53: 0
A54: 3 | B54: 4 | C54: 1 | D54: 5 | E54: 2 | F54: 0 | G54: 0 | H54: 4 | J54: 2 | K54: Nível 3 | L54: 1.5.2. | M54: CALÇADA | O54: 0 | P54: 0 | Q54: 15886.36 | R54: 15886.36 | S54: 0 | T54: 0 | U54: 0 | V54: 0 | W54: 0 | X54: 0 | AY54: 0 | AZ54: 0 | BA54: 0 | BB54: 0 | BC54: 0 | BD54: 0 | BF54: 1.5.2. | BH54: CALÇADA | BK54: =IF(BR54>0,CHOOSE(MATCH(RegimeExecucao,{"Unitário","Global"},0),IF($A54="S",BR54/BN54,""),(BR54/BN54)*100),"") ->  | BN54: =IF(BR54>0,CHOOSE(MATCH(RegimeExecucao,{"Unitário","Global"},0),IF($A54="S",ROUND(P54,arredunit),""),ROUND(R54,arredtot)),"") ->  | BR54: 0
A55: S | B55: 0 | C55: 1 | D55: 5 | E55: 2 | F55: 0 | G55: 1 | H55: 0 | I55: 0 | J55: 3 | K55: Serviço | L55: 1.5.2.1. | M55: PISO PODOTATIL DE CONCRETO - DIRECIONAL E ALERTA, *40 X 40 X 2,5* CM | N55: M2 | O55: 14.4 | P55: 90.58 | Q55: 1304.35 | R55: 1304.35 | S55: 0 | T55: 0 | U55: 0 | V55: 0 | W55: 0 | X55: 0 | AY55: 0 | AZ55: 0 | BA55: 0 | BB55: 0 | BC55: 0 | BD55: 0 | BF55: 1.5.2.1. | BH55: PISO PODOTATIL DE CONCRETO - DIRECIONAL E ALERTA, *40 X 40 X 2,5* CM | BI55: M2 | BK55: =IF(BR55>0,CHOOSE(MATCH(RegimeExecucao,{"Unitário","Global"},0),IF($A55="S",BR55/BN55,""),(BR55/BN55)*100),"") ->  | BN55: =IF(BR55>0,CHOOSE(MATCH(RegimeExecucao,{"Unitário","Global"},0),IF($A55="S",ROUND(P55,arredunit),""),ROUND(R55,arredtot)),"") ->  | BR55: 0
A56: S | B56: 0 | C56: 1 | D56: 5 | E56: 2 | F56: 0 | G56: 2 | H56: 0 | I56: 0 | J56: 3 | K56: Serviço | L56: 1.5.2.2. | M56: ALVENARIA DE EMBASAMENTO EM TIJOLOS CERAMICOS MACICOS 5X10X20CM, ASSENTADO COM ARGAMASSA TRACO 1:2:8 (CIMENTO, CAL E AREIA) | N56: M3 | O56: 3.6 | P56: 696.86 | Q56: 2508.7 | R56: 2508.7 | S56: 0 | T56: 0 | U56: 0 | V56: 0 | W56: 0 | X56: 0 | AY56: 0 | AZ56: 0 | BA56: 0 | BB56: 0 | BC56: 0 | BD56: 0 | BF56: 1.5.2.2. | BH56: ALVENARIA DE EMBASAMENTO EM TIJOLOS CERAMICOS MACICOS 5X10X20CM, ASSENTADO COM ARGAMASSA TRACO 1:2:8 (CIMENTO, CAL E AREIA) | BI56: M3 | BK56: =IF(BR56>0,CHOOSE(MATCH(RegimeExecucao,{"Unitário","Global"},0),IF($A56="S",BR56/BN56,""),(BR56/BN56)*100),"") ->  | BN56: =IF(BR56>0,CHOOSE(MATCH(RegimeExecucao,{"Unitário","Global"},0),IF($A56="S",ROUND(P56,arredunit),""),ROUND(R56,arredtot)),"") ->  | BR56: 0
A57: S | B57: 0 | C57: 1 | D57: 5 | E57: 2 | F57: 0 | G57: 3 | H57: 0 | I57: 0 | J57: 3 | K57: Serviço | L57: 1.5.2.3. | M57: EXECUÇÃO DE PASSEIO (CALÇADA) OU PISO DE CONCRETO COM CONCRETO MOLDADO IN LOCO, FEITO EM OBRA, ACABAMENTO CONVENCIONAL, NÃO ARMADO. AF_07/2016 | N57: M3 | O57: 18.64 | P57: 647.71 | Q57: 12073.31 | R57: 12073.31 | S57: 0 | T57: 0 | U57: 0 | V57: 0 | W57: 0 | X57: 0 | AY57: 0 | AZ57: 0 | BA57: 0 | BB57: 0 | BC57: 0 | BD57: 0 | BF57: 1.5.2.3. | BH57: EXECUÇÃO DE PASSEIO (CALÇADA) OU PISO DE CONCRETO COM CONCRETO MOLDADO IN LOCO, FEITO EM OBRA, ACABAMENTO CONVENCIONAL, NÃO ARMADO. AF_07/2016 | BI57: M3 | BK57: =IF(BR57>0,CHOOSE(MATCH(RegimeExecucao,{"Unitário","Global"},0),IF($A57="S",BR57/BN57,""),(BR57/BN57)*100),"") ->  | BN57: =IF(BR57>0,CHOOSE(MATCH(RegimeExecucao,{"Unitário","Global"},0),IF($A57="S",ROUND(P57,arredunit),""),ROUND(R57,arredtot)),"") ->  | BR57: 0
A58: 2 | B58: 10 | C58: 1 | D58: 6 | E58: 0 | F58: 0 | G58: 0 | H58: 66 | I58: 10 | J58: 1 | K58: Nível 2 | L58: 1.6. | M58: RUA JOSÉ BARBOSA DE ANDRADE FILHO | O58: 0 | P58: 0 | Q58: =Q59+Q64 -> 52286.48 | R58: 52286.48 | S58: 0 | T58: 0 | U58: 0 | V58: 0 | W58: 0 | X58: 0 | AY58: 0 | AZ58: 0 | BA58: 0 | BB58: 0 | BC58: 0 | BD58: 0 | BF58: 1.6. | BH58: RUA JOSÉ BARBOSA DE ANDRADE FILHO | BK58: =IF(BR58>0,CHOOSE(MATCH(RegimeExecucao,{"Unitário","Global"},0),IF($A58="S",BR58/BN58,""),(BR58/BN58)*100),"") ->  | BN58: =IF(BR58>0,CHOOSE(MATCH(RegimeExecucao,{"Unitário","Global"},0),IF($A58="S",ROUND(P58,arredunit),""),ROUND(R58,arredtot)),"") ->  | BR58: 0
A59: 3 | B59: 5 | C59: 1 | D59: 6 | E59: 1 | F59: 0 | G59: 0 | H59: 9 | I59: 5 | J59: 2 | K59: Nível 3 | L59: 1.6.1. | M59: PAVIMENTAÇÃO | O59: 0 | P59: 0 | Q59: 35934.35 | R59: 35934.35 | S59: 0 | T59: 0 | U59: 0 | V59: 0 | W59: 0 | X59: 0 | AY59: 0 | AZ59: 0 | BA59: 0 | BB59: 0 | BC59: 0 | BD59: 0 | BF59: 1.6.1. | BH59: PAVIMENTAÇÃO | BK59: =IF(BR59>0,CHOOSE(MATCH(RegimeExecucao,{"Unitário","Global"},0),IF($A59="S",BR59/BN59,""),(BR59/BN59)*100),"") ->  | BN59: =IF(BR59>0,CHOOSE(MATCH(RegimeExecucao,{"Unitário","Global"},0),IF($A59="S",ROUND(P59,arredunit),""),ROUND(R59,arredtot)),"") ->  | BR59: 0
A60: S | B60: 0 | C60: 1 | D60: 6 | E60: 1 | F60: 0 | G60: 1 | H60: 0 | I60: 0 | J60: 3 | K60: Serviço | L60: 1.6.1.1. | M60: REGULARIZACAO E COMPACTACAO DE SUBLEITO ATE 20 CM DE ESPESSURA | N60: M2 | O60: 374.56 | P60: 1.7 | Q60: 636.75 | R60: 636.75 | S60: 0 | T60: 0 | U60: 0 | V60: 0 | W60: 0 | X60: 0 | AY60: 0 | AZ60: 0 | BA60: 0 | BB60: 0 | BC60: 0 | BD60: 0 | BF60: 1.6.1.1. | BH60: REGULARIZACAO E COMPACTACAO DE SUBLEITO ATE 20 CM DE ESPESSURA | BI60: M2 | BK60: =IF(BR60>0,CHOOSE(MATCH(RegimeExecucao,{"Unitário","Global"},0),IF($A60="S",BR60/BN60,""),(BR60/BN60)*100),"") ->  | BN60: =IF(BR60>0,CHOOSE(MATCH(RegimeExecucao,{"Unitário","Global"},0),IF($A60="S",ROUND(P60,arredunit),""),ROUND(R60,arredtot)),"") ->  | BR60: 0
A61: S | B61: 0 | C61: 1 | D61: 6 | E61: 1 | F61: 0 | G61: 2 | H61: 0 | I61: 0 | J61: 3 | K61: Serviço | L61: 1.6.1.2. | M61: ASSENTAMENTO DE GUIA (MEIO-FIO) EM TRECHO RETO, CONFECCIONADA EM CONCRETO PRÉ-FABRICADO, DIMENSÕES 100X15X13X30 CM (COMPRIMENTO X BASE INFERIOR X BASE SUPERIOR X ALTURA), PARA VIAS URBANAS (USO VIÁRIO). AF_06/2016 | N61: M | O61: 198.54 | P61: 40.28 | Q61: 7997.19 | R61: 7997.19 | S61: 0 | T61: 0 | U61: 0 | V61: 0 | W61: 0 | X61: 0 | AY61: 0 | AZ61: 0 | BA61: 0 | BB61: 0 | BC61: 0 | BD61: 0 | BF61: 1.6.1.2. | BH61: ASSENTAMENTO DE GUIA (MEIO-FIO) EM TRECHO RETO, CONFECCIONADA EM CONCRETO PRÉ-FABRICADO, DIMENSÕES 100X15X13X30 CM (COMPRIMENTO X BASE INFERIOR X BASE SUPERIOR X ALTURA), PARA VIAS URBANAS (USO VIÁRIO). AF_06/2016 | BI61: M | BK61: =IF(BR61>0,CHOOSE(MATCH(RegimeExecucao,{"Unitário","Global"},0),IF($A61="S",BR61/BN61,""),(BR61/BN61)*100),"") ->  | BN61: =IF(BR61>0,CHOOSE(MATCH(RegimeExecucao,{"Unitário","Global"},0),IF($A61="S",ROUND(P61,arredunit),""),ROUND(R61,arredtot)),"") ->  | BR61: 0
A62: S | B62: 0 | C62: 1 | D62: 6 | E62: 1 | F62: 0 | G62: 3 | H62: 0 | I62: 0 | J62: 3 | K62: Serviço | L62: 1.6.1.3. | M62: EXECUÇÃO DE SARJETA DE CONCRETO USINADO, MOLDADA IN LOCO EM TRECHO RETO, 30 CM BASE X 15 CM ALTURA. AF_06/2016 | N62: M | O62: 191.28 | P62: 41.21 | Q62: 7882.65 | R62: 7882.65 | S62: 0 | T62: 0 | U62: 0 | V62: 0 | W62: 0 | X62: 0 | AY62: 0 | AZ62: 0 | BA62: 0 | BB62: 0 | BC62: 0 | BD62: 0 | BF62: 1.6.1.3. | BH62: EXECUÇÃO DE SARJETA DE CONCRETO USINADO, MOLDADA IN LOCO EM TRECHO RETO, 30 CM BASE X 15 CM ALTURA. AF_06/2016 | BI62: M | BK62: =IF(BR62>0,CHOOSE(MATCH(RegimeExecucao,{"Unitário","Global"},0),IF($A62="S",BR62/BN62,""),(BR62/BN62)*100),"") ->  | BN62: =IF(BR62>0,CHOOSE(MATCH(RegimeExecucao,{"Unitário","Global"},0),IF($A62="S",ROUND(P62,arredunit),""),ROUND(R62,arredtot)),"") ->  | BR62: 0
A63: S | B63: 0 | C63: 1 | D63: 6 | E63: 1 | F63: 0 | G63: 4 | H63: 0 | I63: 0 | J63: 3 | K63: Serviço | L63: 1.6.1.4. | M63: PAVIMENTO EM PARALELEPIPEDO SOBRE COLCHAO DE AREIA REJUNTADO COM ARGAMASSA DE CIMENTO E AREIA NO TRAÇO 1:3 (PEDRAS PEQUENAS 30 A 35 PECAS POR M2) | N63: M2 | O63: 317.18 | P63: 61.22 | Q63: 19417.76 | R63: 19417.76 | S63: 0 | T63: 0 | U63: 0 | V63: 0 | W63: 0 | X63: 0 | AY63: 0 | AZ63: 0 | BA63: 0 | BB63: 0 | BC63: 0 | BD63: 0 | BF63: 1.6.1.4. | BH63: PAVIMENTO EM PARALELEPIPEDO SOBRE COLCHAO DE AREIA REJUNTADO COM ARGAMASSA DE CIMENTO E AREIA NO TRAÇO 1:3 (PEDRAS PEQUENAS 30 A 35 PECAS POR M2) | BI63: M2 | BK63: =IF(BR63>0,CHOOSE(MATCH(RegimeExecucao,{"Unitário","Global"},0),IF($A63="S",BR63/BN63,""),(BR63/BN63)*100),"") ->  | BN63: =IF(BR63>0,CHOOSE(MATCH(RegimeExecucao,{"Unitário","Global"},0),IF($A63="S",ROUND(P63,arredunit),""),ROUND(R63,arredtot)),"") ->  | BR63: 0
A64: 3 | B64: 4 | C64: 1 | D64: 6 | E64: 2 | F64: 0 | G64: 0 | H64: 4 | J64: 2 | K64: Nível 3 | L64: 1.6.2. | M64: CALÇADA | O64: 0 | P64: 0 | Q64: 16352.13 | R64: 16352.13 | S64: 0 | T64: 0 | U64: 0 | V64: 0 | W64: 0 | X64: 0 | AY64: 0 | AZ64: 0 | BA64: 0 | BB64: 0 | BC64: 0 | BD64: 0 | BF64: 1.6.2. | BH64: CALÇADA | BK64: =IF(BR64>0,CHOOSE(MATCH(RegimeExecucao,{"Unitário","Global"},0),IF($A64="S",BR64/BN64,""),(BR64/BN64)*100),"") ->  | BN64: =IF(BR64>0,CHOOSE(MATCH(RegimeExecucao,{"Unitário","Global"},0),IF($A64="S",ROUND(P64,arredunit),""),ROUND(R64,arredtot)),"") ->  | BR64: 0
A65: S | B65: 0 | C65: 1 | D65: 6 | E65: 2 | F65: 0 | G65: 1 | H65: 0 | I65: 0 | J65: 3 | K65: Serviço | L65: 1.6.2.1. | M65: PISO PODOTATIL DE CONCRETO - DIRECIONAL E ALERTA, *40 X 40 X 2,5* CM | N65: M2 | O65: 14.4 | P65: 90.58 | Q65: 1304.35 | R65: 1304.35 | S65: 0 | T65: 0 | U65: 0 | V65: 0 | W65: 0 | X65: 0 | AY65: 0 | AZ65: 0 | BA65: 0 | BB65: 0 | BC65: 0 | BD65: 0 | BF65: 1.6.2.1. | BH65: PISO PODOTATIL DE CONCRETO - DIRECIONAL E ALERTA, *40 X 40 X 2,5* CM | BI65: M2 | BK65: =IF(BR65>0,CHOOSE(MATCH(RegimeExecucao,{"Unitário","Global"},0),IF($A65="S",BR65/BN65,""),(BR65/BN65)*100),"") ->  | BN65: =IF(BR65>0,CHOOSE(MATCH(RegimeExecucao,{"Unitário","Global"},0),IF($A65="S",ROUND(P65,arredunit),""),ROUND(R65,arredtot)),"") ->  | BR65: 0
A66: S | B66: 0 | C66: 1 | D66: 6 | E66: 2 | F66: 0 | G66: 2 | H66: 0 | I66: 0 | J66: 3 | K66: Serviço | L66: 1.6.2.2. | M66: ALVENARIA DE EMBASAMENTO EM TIJOLOS CERAMICOS MACICOS 5X10X20CM, ASSENTADO COM ARGAMASSA TRACO 1:2:8 (CIMENTO, CAL E AREIA) | N66: M3 | O66: 3.72 | P66: 696.86 | Q66: 2592.32 | R66: 2592.32 | S66: 0 | T66: 0 | U66: 0 | V66: 0 | W66: 0 | X66: 0 | AY66: 0 | AZ66: 0 | BA66: 0 | BB66: 0 | BC66: 0 | BD66: 0 | BF66: 1.6.2.2. | BH66: ALVENARIA DE EMBASAMENTO EM TIJOLOS CERAMICOS MACICOS 5X10X20CM, ASSENTADO COM ARGAMASSA TRACO 1:2:8 (CIMENTO, CAL E AREIA) | BI66: M3 | BK66: =IF(BR66>0,CHOOSE(MATCH(RegimeExecucao,{"Unitário","Global"},0),IF($A66="S",BR66/BN66,""),(BR66/BN66)*100),"") ->  | BN66: =IF(BR66>0,CHOOSE(MATCH(RegimeExecucao,{"Unitário","Global"},0),IF($A66="S",ROUND(P66,arredunit),""),ROUND(R66,arredtot)),"") ->  | BR66: 0
A67: S | B67: 0 | C67: 1 | D67: 6 | E67: 2 | F67: 0 | G67: 3 | H67: 0 | I67: 0 | J67: 3 | K67: Serviço | L67: 1.6.2.3. | M67: EXECUÇÃO DE PASSEIO (CALÇADA) OU PISO DE CONCRETO COM CONCRETO MOLDADO IN LOCO, FEITO EM OBRA, ACABAMENTO CONVENCIONAL, NÃO ARMADO. AF_07/2016 | N67: M3 | O67: 19.23 | P67: 647.71 | Q67: 12455.46 | R67: 12455.46 | S67: 0 | T67: 0 | U67: 0 | V67: 0 | W67: 0 | X67: 0 | AY67: 0 | AZ67: 0 | BA67: 0 | BB67: 0 | BC67: 0 | BD67: 0 | BF67: 1.6.2.3. | BH67: EXECUÇÃO DE PASSEIO (CALÇADA) OU PISO DE CONCRETO COM CONCRETO MOLDADO IN LOCO, FEITO EM OBRA, ACABAMENTO CONVENCIONAL, NÃO ARMADO. AF_07/2016 | BI67: M3 | BK67: =IF(BR67>0,CHOOSE(MATCH(RegimeExecucao,{"Unitário","Global"},0),IF($A67="S",BR67/BN67,""),(BR67/BN67)*100),"") ->  | BN67: =IF(BR67>0,CHOOSE(MATCH(RegimeExecucao,{"Unitário","Global"},0),IF($A67="S",ROUND(P67,arredunit),""),ROUND(R67,arredtot)),"") ->  | BR67: 0
A68: 2 | B68: 10 | C68: 1 | D68: 7 | E68: 0 | F68: 0 | G68: 0 | H68: 56 | I68: 10 | J68: 1 | K68: Nível 2 | L68: 1.7. | M68: RUA DANIEL FRANCISCO GOMES | O68: 0 | P68: 0 | Q68: 54022.64 | R68: 54022.64 | S68: 0 | T68: 0 | U68: 0 | V68: 0 | W68: 0 | X68: 0 | AY68: 0 | AZ68: 0 | BA68: 0 | BB68: 0 | BC68: 0 | BD68: 0 | BF68: 1.7. | BH68: RUA DANIEL FRANCISCO GOMES | BK68: =IF(BR68>0,CHOOSE(MATCH(RegimeExecucao,{"Unitário","Global"},0),IF($A68="S",BR68/BN68,""),(BR68/BN68)*100),"") ->  | BN68: =IF(BR68>0,CHOOSE(MATCH(RegimeExecucao,{"Unitário","Global"},0),IF($A68="S",ROUND(P68,arredunit),""),ROUND(R68,arredtot)),"") ->  | BR68: 0
A69: 3 | B69: 5 | C69: 1 | D69: 7 | E69: 1 | F69: 0 | G69: 0 | H69: 9 | I69: 5 | J69: 2 | K69: Nível 3 | L69: 1.7.1. | M69: PAVIMENTAÇÃO | O69: 0 | P69: 0 | Q69: 37283.93 | R69: 37283.93 | S69: 0 | T69: 0 | U69: 0 | V69: 0 | W69: 0 | X69: 0 | AY69: 0 | AZ69: 0 | BA69: 0 | BB69: 0 | BC69: 0 | BD69: 0 | BF69: 1.7.1. | BH69: PAVIMENTAÇÃO | BK69: =IF(BR69>0,CHOOSE(MATCH(RegimeExecucao,{"Unitário","Global"},0),IF($A69="S",BR69/BN69,""),(BR69/BN69)*100),"") ->  | BN69: =IF(BR69>0,CHOOSE(MATCH(RegimeExecucao,{"Unitário","Global"},0),IF($A69="S",ROUND(P69,arredunit),""),ROUND(R69,arredtot)),"") ->  | BR69: 0
A70: S | B70: 0 | C70: 1 | D70: 7 | E70: 1 | F70: 0 | G70: 1 | H70: 0 | I70: 0 | J70: 3 | K70: Serviço | L70: 1.7.1.1. | M70: REGULARIZACAO E COMPACTACAO DE SUBLEITO ATE 20 CM DE ESPESSURA | N70: M2 | O70: 391.72 | P70: 1.7 | Q70: 665.92 | R70: 665.92 | S70: 0 | T70: 0 | U70: 0 | V70: 0 | W70: 0 | X70: 0 | AY70: 0 | AZ70: 0 | BA70: 0 | BB70: 0 | BC70: 0 | BD70: 0 | BF70: 1.7.1.1. | BH70: REGULARIZACAO E COMPACTACAO DE SUBLEITO ATE 20 CM DE ESPESSURA | BI70: M2 | BK70: =IF(BR70>0,CHOOSE(MATCH(RegimeExecucao,{"Unitário","Global"},0),IF($A70="S",BR70/BN70,""),(BR70/BN70)*100),"") ->  | BN70: =IF(BR70>0,CHOOSE(MATCH(RegimeExecucao,{"Unitário","Global"},0),IF($A70="S",ROUND(P70,arredunit),""),ROUND(R70,arredtot)),"") ->  | BR70: 0
A71: S | B71: 0 | C71: 1 | D71: 7 | E71: 1 | F71: 0 | G71: 2 | H71: 0 | I71: 0 | J71: 3 | K71: Serviço | L71: 1.7.1.2. | M71: ASSENTAMENTO DE GUIA (MEIO-FIO) EM TRECHO RETO, CONFECCIONADA EM CONCRETO PRÉ-FABRICADO, DIMENSÕES 100X15X13X30 CM (COMPRIMENTO X BASE INFERIOR X BASE SUPERIOR X ALTURA), PARA VIAS URBANAS (USO VIÁRIO). AF_06/2016 | N71: M | O71: 204.92 | P71: 40.28 | Q71: 8254.18 | R71: 8254.18 | S71: 0 | T71: 0 | U71: 0 | V71: 0 | W71: 0 | X71: 0 | AY71: 0 | AZ71: 0 | BA71: 0 | BB71: 0 | BC71: 0 | BD71: 0 | BF71: 1.7.1.2. | BH71: ASSENTAMENTO DE GUIA (MEIO-FIO) EM TRECHO RETO, CONFECCIONADA EM CONCRETO PRÉ-FABRICADO, DIMENSÕES 100X15X13X30 CM (COMPRIMENTO X BASE INFERIOR X BASE SUPERIOR X ALTURA), PARA VIAS URBANAS (USO VIÁRIO). AF_06/2016 | BI71: M | BK71: =IF(BR71>0,CHOOSE(MATCH(RegimeExecucao,{"Unitário","Global"},0),IF($A71="S",BR71/BN71,""),(BR71/BN71)*100),"") ->  | BN71: =IF(BR71>0,CHOOSE(MATCH(RegimeExecucao,{"Unitário","Global"},0),IF($A71="S",ROUND(P71,arredunit),""),ROUND(R71,arredtot)),"") ->  | BR71: 0
A72: S | B72: 0 | C72: 1 | D72: 7 | E72: 1 | F72: 0 | G72: 3 | H72: 0 | I72: 0 | J72: 3 | K72: Serviço | L72: 1.7.1.3. | M72: EXECUÇÃO DE SARJETA DE CONCRETO USINADO, MOLDADA IN LOCO EM TRECHO RETO, 30 CM BASE X 15 CM ALTURA. AF_06/2016 | N72: M | O72: 191.86 | P72: 41.21 | Q72: 7906.55 | R72: 7906.55 | S72: 0 | T72: 0 | U72: 0 | V72: 0 | W72: 0 | X72: 0 | AY72: 0 | AZ72: 0 | BA72: 0 | BB72: 0 | BC72: 0 | BD72: 0 | BF72: 1.7.1.3. | BH72: EXECUÇÃO DE SARJETA DE CONCRETO USINADO, MOLDADA IN LOCO EM TRECHO RETO, 30 CM BASE X 15 CM ALTURA. AF_06/2016 | BI72: M | BK72: =IF(BR72>0,CHOOSE(MATCH(RegimeExecucao,{"Unitário","Global"},0),IF($A72="S",BR72/BN72,""),(BR72/BN72)*100),"") ->  | BN72: =IF(BR72>0,CHOOSE(MATCH(RegimeExecucao,{"Unitário","Global"},0),IF($A72="S",ROUND(P72,arredunit),""),ROUND(R72,arredtot)),"") ->  | BR72: 0
A73: S | B73: 0 | C73: 1 | D73: 7 | E73: 1 | F73: 0 | G73: 4 | H73: 0 | I73: 0 | J73: 3 | K73: Serviço | L73: 1.7.1.4. | M73: PAVIMENTO EM PARALELEPIPEDO SOBRE COLCHAO DE AREIA REJUNTADO COM ARGAMASSA DE CIMENTO E AREIA NO TRAÇO 1:3 (PEDRAS PEQUENAS 30 A 35 PECAS POR M2) | N73: M2 | O73: 334.16 | P73: 61.22 | Q73: 20457.28 | R73: 20457.28 | S73: 0 | T73: 0 | U73: 0 | V73: 0 | W73: 0 | X73: 0 | AY73: 0 | AZ73: 0 | BA73: 0 | BB73: 0 | BC73: 0 | BD73: 0 | BF73: 1.7.1.4. | BH73: PAVIMENTO EM PARALELEPIPEDO SOBRE COLCHAO DE AREIA REJUNTADO COM ARGAMASSA DE CIMENTO E AREIA NO TRAÇO 1:3 (PEDRAS PEQUENAS 30 A 35 PECAS POR M2) | BI73: M2 | BK73: =IF(BR73>0,CHOOSE(MATCH(RegimeExecucao,{"Unitário","Global"},0),IF($A73="S",BR73/BN73,""),(BR73/BN73)*100),"") ->  | BN73: =IF(BR73>0,CHOOSE(MATCH(RegimeExecucao,{"Unitário","Global"},0),IF($A73="S",ROUND(P73,arredunit),""),ROUND(R73,arredtot)),"") ->  | BR73: 0
A74: 3 | B74: 4 | C74: 1 | D74: 7 | E74: 2 | F74: 0 | G74: 0 | H74: 4 | J74: 2 | K74: Nível 3 | L74: 1.7.2. | M74: CALÇADA | O74: 0 | P74: 0 | Q74: 16738.71 | R74: 16738.71 | S74: 0 | T74: 0 | U74: 0 | V74: 0 | W74: 0 | X74: 0 | AY74: 0 | AZ74: 0 | BA74: 0 | BB74: 0 | BC74: 0 | BD74: 0 | BF74: 1.7.2. | BH74: CALÇADA | BK74: =IF(BR74>0,CHOOSE(MATCH(RegimeExecucao,{"Unitário","Global"},0),IF($A74="S",BR74/BN74,""),(BR74/BN74)*100),"") ->  | BN74: =IF(BR74>0,CHOOSE(MATCH(RegimeExecucao,{"Unitário","Global"},0),IF($A74="S",ROUND(P74,arredunit),""),ROUND(R74,arredtot)),"") ->  | BR74: 0
A75: S | B75: 0 | C75: 1 | D75: 7 | E75: 2 | F75: 0 | G75: 1 | H75: 0 | I75: 0 | J75: 3 | K75: Serviço | L75: 1.7.2.1. | M75: PISO PODOTATIL DE CONCRETO - DIRECIONAL E ALERTA, *40 X 40 X 2,5* CM | N75: M2 | O75: 14.4 | P75: 90.58 | Q75: 1304.35 | R75: 1304.35 | S75: 0 | T75: 0 | U75: 0 | V75: 0 | W75: 0 | X75: 0 | AY75: 0 | AZ75: 0 | BA75: 0 | BB75: 0 | BC75: 0 | BD75: 0 | BF75: 1.7.2.1. | BH75: PISO PODOTATIL DE CONCRETO - DIRECIONAL E ALERTA, *40 X 40 X 2,5* CM | BI75: M2 | BK75: =IF(BR75>0,CHOOSE(MATCH(RegimeExecucao,{"Unitário","Global"},0),IF($A75="S",BR75/BN75,""),(BR75/BN75)*100),"") ->  | BN75: =IF(BR75>0,CHOOSE(MATCH(RegimeExecucao,{"Unitário","Global"},0),IF($A75="S",ROUND(P75,arredunit),""),ROUND(R75,arredtot)),"") ->  | BR75: 0
A76: S | B76: 0 | C76: 1 | D76: 7 | E76: 2 | F76: 0 | G76: 2 | H76: 0 | I76: 0 | J76: 3 | K76: Serviço | L76: 1.7.2.2. | M76: ALVENARIA DE EMBASAMENTO EM TIJOLOS CERAMICOS MACICOS 5X10X20CM, ASSENTADO COM ARGAMASSA TRACO 1:2:8 (CIMENTO, CAL E AREIA) | N76: M3 | O76: 3.81 | P76: 696.86 | Q76: 2655.04 | R76: 2655.04 | S76: 0 | T76: 0 | U76: 0 | V76: 0 | W76: 0 | X76: 0 | AY76: 0 | AZ76: 0 | BA76: 0 | BB76: 0 | BC76: 0 | BD76: 0 | BF76: 1.7.2.2. | BH76: ALVENARIA DE EMBASAMENTO EM TIJOLOS CERAMICOS MACICOS 5X10X20CM, ASSENTADO COM ARGAMASSA TRACO 1:2:8 (CIMENTO, CAL E AREIA) | BI76: M3 | BK76: =IF(BR76>0,CHOOSE(MATCH(RegimeExecucao,{"Unitário","Global"},0),IF($A76="S",BR76/BN76,""),(BR76/BN76)*100),"") ->  | BN76: =IF(BR76>0,CHOOSE(MATCH(RegimeExecucao,{"Unitário","Global"},0),IF($A76="S",ROUND(P76,arredunit),""),ROUND(R76,arredtot)),"") ->  | BR76: 0
A77: S | B77: 0 | C77: 1 | D77: 7 | E77: 2 | F77: 0 | G77: 3 | H77: 0 | I77: 0 | J77: 3 | K77: Serviço | L77: 1.7.2.3. | M77: EXECUÇÃO DE PASSEIO (CALÇADA) OU PISO DE CONCRETO COM CONCRETO MOLDADO IN LOCO, FEITO EM OBRA, ACABAMENTO CONVENCIONAL, NÃO ARMADO. AF_07/2016 | N77: M3 | O77: 19.73 | P77: 647.71 | Q77: 12779.32 | R77: 12779.32 | S77: 0 | T77: 0 | U77: 0 | V77: 0 | W77: 0 | X77: 0 | AY77: 0 | AZ77: 0 | BA77: 0 | BB77: 0 | BC77: 0 | BD77: 0 | BF77: 1.7.2.3. | BH77: EXECUÇÃO DE PASSEIO (CALÇADA) OU PISO DE CONCRETO COM CONCRETO MOLDADO IN LOCO, FEITO EM OBRA, ACABAMENTO CONVENCIONAL, NÃO ARMADO. AF_07/2016 | BI77: M3 | BK77: =IF(BR77>0,CHOOSE(MATCH(RegimeExecucao,{"Unitário","Global"},0),IF($A77="S",BR77/BN77,""),(BR77/BN77)*100),"") ->  | BN77: =IF(BR77>0,CHOOSE(MATCH(RegimeExecucao,{"Unitário","Global"},0),IF($A77="S",ROUND(P77,arredunit),""),ROUND(R77,arredtot)),"") ->  | BR77: 0
A78: 2 | B78: 10 | C78: 1 | D78: 8 | E78: 0 | F78: 0 | G78: 0 | H78: 46 | I78: 10 | J78: 1 | K78: Nível 2 | L78: 1.8. | M78: RUA PROJETADA 02 | O78: 0 | P78: 0 | Q78: 123238.83 | R78: 123238.83 | S78: 0 | T78: 0 | U78: 0 | V78: 0 | W78: 0 | X78: 0 | AY78: 0 | AZ78: 0 | BA78: 0 | BB78: 0 | BC78: 0 | BD78: 0 | BF78: 1.8. | BH78: RUA PROJETADA 02 | BK78: =IF(BR78>0,CHOOSE(MATCH(RegimeExecucao,{"Unitário","Global"},0),IF($A78="S",BR78/BN78,""),(BR78/BN78)*100),"") ->  | BN78: =IF(BR78>0,CHOOSE(MATCH(RegimeExecucao,{"Unitário","Global"},0),IF($A78="S",ROUND(P78,arredunit),""),ROUND(R78,arredtot)),"") ->  | BR78: 0
A79: 3 | B79: 5 | C79: 1 | D79: 8 | E79: 1 | F79: 0 | G79: 0 | H79: 9 | I79: 5 | J79: 2 | K79: Nível 3 | L79: 1.8.1. | M79: PAVIMENTAÇÃO | O79: 0 | P79: 0 | Q79: 90918.68 | R79: 90918.68 | S79: 0 | T79: 0 | U79: 0 | V79: 0 | W79: 0 | X79: 0 | AY79: 0 | AZ79: 0 | BA79: 0 | BB79: 0 | BC79: 0 | BD79: 0 | BF79: 1.8.1. | BH79: PAVIMENTAÇÃO | BK79: =IF(BR79>0,CHOOSE(MATCH(RegimeExecucao,{"Unitário","Global"},0),IF($A79="S",BR79/BN79,""),(BR79/BN79)*100),"") ->  | BN79: =IF(BR79>0,CHOOSE(MATCH(RegimeExecucao,{"Unitário","Global"},0),IF($A79="S",ROUND(P79,arredunit),""),ROUND(R79,arredtot)),"") ->  | BR79: 0
A80: S | B80: 0 | C80: 1 | D80: 8 | E80: 1 | F80: 0 | G80: 1 | H80: 0 | I80: 0 | J80: 3 | K80: Serviço | L80: 1.8.1.1. | M80: REGULARIZACAO E COMPACTACAO DE SUBLEITO ATE 20 CM DE ESPESSURA | N80: M2 | O80: 979.02 | P80: 1.7 | Q80: 1664.33 | R80: 1664.33 | S80: 0 | T80: 0 | U80: 0 | V80: 0 | W80: 0 | X80: 0 | AY80: 0 | AZ80: 0 | BA80: 0 | BB80: 0 | BC80: 0 | BD80: 0 | BF80: 1.8.1.1. | BH80: REGULARIZACAO E COMPACTACAO DE SUBLEITO ATE 20 CM DE ESPESSURA | BI80: M2 | BK80: =IF(BR80>0,CHOOSE(MATCH(RegimeExecucao,{"Unitário","Global"},0),IF($A80="S",BR80/BN80,""),(BR80/BN80)*100),"") ->  | BN80: =IF(BR80>0,CHOOSE(MATCH(RegimeExecucao,{"Unitário","Global"},0),IF($A80="S",ROUND(P80,arredunit),""),ROUND(R80,arredtot)),"") ->  | BR80: 0
A81: S | B81: 0 | C81: 1 | D81: 8 | E81: 1 | F81: 0 | G81: 2 | H81: 0 | I81: 0 | J81: 3 | K81: Serviço | L81: 1.8.1.2. | M81: ASSENTAMENTO DE GUIA (MEIO-FIO) EM TRECHO RETO, CONFECCIONADA EM CONCRETO PRÉ-FABRICADO, DIMENSÕES 100X15X13X30 CM (COMPRIMENTO X BASE INFERIOR X BASE SUPERIOR X ALTURA), PARA VIAS URBANAS (USO VIÁRIO). AF_06/2016 | N81: M | O81: 470.18 | P81: 40.28 | Q81: 18938.85 | R81: 18938.85 | S81: 0 | T81: 0 | U81: 0 | V81: 0 | W81: 0 | X81: 0 | AY81: 0 | AZ81: 0 | BA81: 0 | BB81: 0 | BC81: 0 | BD81: 0 | BF81: 1.8.1.2. | BH81: ASSENTAMENTO DE GUIA (MEIO-FIO) EM TRECHO RETO, CONFECCIONADA EM CONCRETO PRÉ-FABRICADO, DIMENSÕES 100X15X13X30 CM (COMPRIMENTO X BASE INFERIOR X BASE SUPERIOR X ALTURA), PARA VIAS URBANAS (USO VIÁRIO). AF_06/2016 | BI81: M | BK81: =IF(BR81>0,CHOOSE(MATCH(RegimeExecucao,{"Unitário","Global"},0),IF($A81="S",BR81/BN81,""),(BR81/BN81)*100),"") ->  | BN81: =IF(BR81>0,CHOOSE(MATCH(RegimeExecucao,{"Unitário","Global"},0),IF($A81="S",ROUND(P81,arredunit),""),ROUND(R81,arredtot)),"") ->  | BR81: 0
A82: S | B82: 0 | C82: 1 | D82: 8 | E82: 1 | F82: 0 | G82: 3 | H82: 0 | I82: 0 | J82: 3 | K82: Serviço | L82: 1.8.1.3. | M82: EXECUÇÃO DE SARJETA DE CONCRETO USINADO, MOLDADA IN LOCO EM TRECHO RETO, 30 CM BASE X 15 CM ALTURA. AF_06/2016 | N82: M | O82: 454.39 | P82: 41.21 | Q82: 18725.41 | R82: 18725.41 | S82: 0 | T82: 0 | U82: 0 | V82: 0 | W82: 0 | X82: 0 | AY82: 0 | AZ82: 0 | BA82: 0 | BB82: 0 | BC82: 0 | BD82: 0 | BF82: 1.8.1.3. | BH82: EXECUÇÃO DE SARJETA DE CONCRETO USINADO, MOLDADA IN LOCO EM TRECHO RETO, 30 CM BASE X 15 CM ALTURA. AF_06/2016 | BI82: M | BK82: =IF(BR82>0,CHOOSE(MATCH(RegimeExecucao,{"Unitário","Global"},0),IF($A82="S",BR82/BN82,""),(BR82/BN82)*100),"") ->  | BN82: =IF(BR82>0,CHOOSE(MATCH(RegimeExecucao,{"Unitário","Global"},0),IF($A82="S",ROUND(P82,arredunit),""),ROUND(R82,arredtot)),"") ->  | BR82: 0
A83: S | B83: 0 | C83: 1 | D83: 8 | E83: 1 | F83: 0 | G83: 4 | H83: 0 | I83: 0 | J83: 3 | K83: Serviço | L83: 1.8.1.4. | M83: PAVIMENTO EM PARALELEPIPEDO SOBRE COLCHAO DE AREIA REJUNTADO COM ARGAMASSA DE CIMENTO E AREIA NO TRAÇO 1:3 (PEDRAS PEQUENAS 30 A 35 PECAS POR M2) | N83: M2 | O83: 842.7 | P83: 61.22 | Q83: 51590.09 | R83: 51590.09 | S83: 0 | T83: 0 | U83: 0 | V83: 0 | W83: 0 | X83: 0 | AY83: 0 | AZ83: 0 | BA83: 0 | BB83: 0 | BC83: 0 | BD83: 0 | BF83: 1.8.1.4. | BH83: PAVIMENTO EM PARALELEPIPEDO SOBRE COLCHAO DE AREIA REJUNTADO COM ARGAMASSA DE CIMENTO E AREIA NO TRAÇO 1:3 (PEDRAS PEQUENAS 30 A 35 PECAS POR M2) | BI83: M2 | BK83: =IF(BR83>0,CHOOSE(MATCH(RegimeExecucao,{"Unitário","Global"},0),IF($A83="S",BR83/BN83,""),(BR83/BN83)*100),"") ->  | BN83: =IF(BR83>0,CHOOSE(MATCH(RegimeExecucao,{"Unitário","Global"},0),IF($A83="S",ROUND(P83,arredunit),""),ROUND(R83,arredtot)),"") ->  | BR83: 0
A84: 3 | B84: 4 | C84: 1 | D84: 8 | E84: 2 | F84: 0 | G84: 0 | H84: 4 | J84: 2 | K84: Nível 3 | L84: 1.8.2. | M84: CALÇADA | O84: 0 | P84: 0 | Q84: 32320.15 | R84: 32320.15 | S84: 0 | T84: 0 | U84: 0 | V84: 0 | W84: 0 | X84: 0 | AY84: 0 | AZ84: 0 | BA84: 0 | BB84: 0 | BC84: 0 | BD84: 0 | BF84: 1.8.2. | BH84: CALÇADA | BK84: =IF(BR84>0,CHOOSE(MATCH(RegimeExecucao,{"Unitário","Global"},0),IF($A84="S",BR84/BN84,""),(BR84/BN84)*100),"") ->  | BN84: =IF(BR84>0,CHOOSE(MATCH(RegimeExecucao,{"Unitário","Global"},0),IF($A84="S",ROUND(P84,arredunit),""),ROUND(R84,arredtot)),"") ->  | BR84: 0
A85: S | B85: 0 | C85: 1 | D85: 8 | E85: 2 | F85: 0 | G85: 1 | H85: 0 | I85: 0 | J85: 3 | K85: Serviço | L85: 1.8.2.1. | M85: PISO PODOTATIL DE CONCRETO - DIRECIONAL E ALERTA, *40 X 40 X 2,5* CM | N85: M2 | O85: 15.6 | P85: 90.58 | Q85: 1413.05 | R85: 1413.05 | S85: 0 | T85: 0 | U85: 0 | V85: 0 | W85: 0 | X85: 0 | AY85: 0 | AZ85: 0 | BA85: 0 | BB85: 0 | BC85: 0 | BD85: 0 | BF85: 1.8.2.1. | BH85: PISO PODOTATIL DE CONCRETO - DIRECIONAL E ALERTA, *40 X 40 X 2,5* CM | BI85: M2 | BK85: =IF(BR85>0,CHOOSE(MATCH(RegimeExecucao,{"Unitário","Global"},0),IF($A85="S",BR85/BN85,""),(BR85/BN85)*100),"") ->  | BN85: =IF(BR85>0,CHOOSE(MATCH(RegimeExecucao,{"Unitário","Global"},0),IF($A85="S",ROUND(P85,arredunit),""),ROUND(R85,arredtot)),"") ->  | BR85: 0
A86: S | B86: 0 | C86: 1 | D86: 8 | E86: 2 | F86: 0 | G86: 2 | H86: 0 | I86: 0 | J86: 3 | K86: Serviço | L86: 1.8.2.2. | M86: ALVENARIA DE EMBASAMENTO EM TIJOLOS CERAMICOS MACICOS 5X10X20CM, ASSENTADO COM ARGAMASSA TRACO 1:2:8 (CIMENTO, CAL E AREIA) | N86: M3 | O86: 9.06 | P86: 696.86 | Q86: 6313.55 | R86: 6313.55 | S86: 0 | T86: 0 | U86: 0 | V86: 0 | W86: 0 | X86: 0 | AY86: 0 | AZ86: 0 | BA86: 0 | BB86: 0 | BC86: 0 | BD86: 0 | BF86: 1.8.2.2. | BH86: ALVENARIA DE EMBASAMENTO EM TIJOLOS CERAMICOS MACICOS 5X10X20CM, ASSENTADO COM ARGAMASSA TRACO 1:2:8 (CIMENTO, CAL E AREIA) | BI86: M3 | BK86: =IF(BR86>0,CHOOSE(MATCH(RegimeExecucao,{"Unitário","Global"},0),IF($A86="S",BR86/BN86,""),(BR86/BN86)*100),"") ->  | BN86: =IF(BR86>0,CHOOSE(MATCH(RegimeExecucao,{"Unitário","Global"},0),IF($A86="S",ROUND(P86,arredunit),""),ROUND(R86,arredtot)),"") ->  | BR86: 0
A87: S | B87: 0 | C87: 1 | D87: 8 | E87: 2 | F87: 0 | G87: 3 | H87: 0 | I87: 0 | J87: 3 | K87: Serviço | L87: 1.8.2.3. | M87: EXECUÇÃO DE PASSEIO (CALÇADA) OU PISO DE CONCRETO COM CONCRETO MOLDADO IN LOCO, FEITO EM OBRA, ACABAMENTO CONVENCIONAL, NÃO ARMADO. AF_07/2016 | N87: M3 | O87: 37.97 | P87: 647.71 | Q87: 24593.55 | R87: 24593.55 | S87: 0 | T87: 0 | U87: 0 | V87: 0 | W87: 0 | X87: 0 | AY87: 0 | AZ87: 0 | BA87: 0 | BB87: 0 | BC87: 0 | BD87: 0 | BF87: 1.8.2.3. | BH87: EXECUÇÃO DE PASSEIO (CALÇADA) OU PISO DE CONCRETO COM CONCRETO MOLDADO IN LOCO, FEITO EM OBRA, ACABAMENTO CONVENCIONAL, NÃO ARMADO. AF_07/2016 | BI87: M3 | BK87: =IF(BR87>0,CHOOSE(MATCH(RegimeExecucao,{"Unitário","Global"},0),IF($A87="S",BR87/BN87,""),(BR87/BN87)*100),"") ->  | BN87: =IF(BR87>0,CHOOSE(MATCH(RegimeExecucao,{"Unitário","Global"},0),IF($A87="S",ROUND(P87,arredunit),""),ROUND(R87,arredtot)),"") ->  | BR87: 0
A88: 2 | B88: 10 | C88: 1 | D88: 9 | E88: 0 | F88: 0 | G88: 0 | H88: 36 | I88: 10 | J88: 1 | K88: Nível 2 | L88: 1.9. | M88: RUA MARIA FERREIRA DE LIRA | O88: 0 | P88: 0 | Q88: 119178.74 | R88: 119178.74 | S88: 0 | T88: 0 | U88: 0 | V88: 0 | W88: 0 | X88: 0 | AY88: 0 | AZ88: 0 | BA88: 0 | BB88: 0 | BC88: 0 | BD88: 0 | BF88: 1.9. | BH88: RUA MARIA FERREIRA DE LIRA | BK88: =IF(BR88>0,CHOOSE(MATCH(RegimeExecucao,{"Unitário","Global"},0),IF($A88="S",BR88/BN88,""),(BR88/BN88)*100),"") ->  | BN88: =IF(BR88>0,CHOOSE(MATCH(RegimeExecucao,{"Unitário","Global"},0),IF($A88="S",ROUND(P88,arredunit),""),ROUND(R88,arredtot)),"") ->  | BR88: 0
A89: 3 | B89: 5 | C89: 1 | D89: 9 | E89: 1 | F89: 0 | G89: 0 | H89: 9 | I89: 5 | J89: 2 | K89: Nível 3 | L89: 1.9.1. | M89: PAVIMENTAÇÃO | O89: 0 | P89: 0 | Q89: 86745.44 | R89: 86745.44 | S89: 0 | T89: 0 | U89: 0 | V89: 0 | W89: 0 | X89: 0 | AY89: 0 | AZ89: 0 | BA89: 0 | BB89: 0 | BC89: 0 | BD89: 0 | BF89: 1.9.1. | BH89: PAVIMENTAÇÃO | BK89: =IF(BR89>0,CHOOSE(MATCH(RegimeExecucao,{"Unitário","Global"},0),IF($A89="S",BR89/BN89,""),(BR89/BN89)*100),"") ->  | BN89: =IF(BR89>0,CHOOSE(MATCH(RegimeExecucao,{"Unitário","Global"},0),IF($A89="S",ROUND(P89,arredunit),""),ROUND(R89,arredtot)),"") ->  | BR89: 0
A90: S | B90: 0 | C90: 1 | D90: 9 | E90: 1 | F90: 0 | G90: 1 | H90: 0 | I90: 0 | J90: 3 | K90: Serviço | L90: 1.9.1.1. | M90: REGULARIZACAO E COMPACTACAO DE SUBLEITO ATE 20 CM DE ESPESSURA | N90: M2 | O90: 915.2 | P90: 1.7 | Q90: 1555.84 | R90: 1555.84 | S90: 0 | T90: 0 | U90: 0 | V90: 0 | W90: 0 | X90: 0 | AY90: 0 | AZ90: 0 | BA90: 0 | BB90: 0 | BC90: 0 | BD90: 0 | BF90: 1.9.1.1. | BH90: REGULARIZACAO E COMPACTACAO DE SUBLEITO ATE 20 CM DE ESPESSURA | BI90: M2 | BK90: =IF(BR90>0,CHOOSE(MATCH(RegimeExecucao,{"Unitário","Global"},0),IF($A90="S",BR90/BN90,""),(BR90/BN90)*100),"") ->  | BN90: =IF(BR90>0,CHOOSE(MATCH(RegimeExecucao,{"Unitário","Global"},0),IF($A90="S",ROUND(P90,arredunit),""),ROUND(R90,arredtot)),"") ->  | BR90: 0
A91: S | B91: 0 | C91: 1 | D91: 9 | E91: 1 | F91: 0 | G91: 2 | H91: 0 | I91: 0 | J91: 3 | K91: Serviço | L91: 1.9.1.2. | M91: ASSENTAMENTO DE GUIA (MEIO-FIO) EM TRECHO RETO, CONFECCIONADA EM CONCRETO PRÉ-FABRICADO, DIMENSÕES 100X15X13X30 CM (COMPRIMENTO X BASE INFERIOR X BASE SUPERIOR X ALTURA), PARA VIAS URBANAS (USO VIÁRIO). AF_06/2016 | N91: M | O91: 464.44 | P91: 40.28 | Q91: 18707.64 | R91: 18707.64 | S91: 0 | T91: 0 | U91: 0 | V91: 0 | W91: 0 | X91: 0 | AY91: 0 | AZ91: 0 | BA91: 0 | BB91: 0 | BC91: 0 | BD91: 0 | BF91: 1.9.1.2. | BH91: ASSENTAMENTO DE GUIA (MEIO-FIO) EM TRECHO RETO, CONFECCIONADA EM CONCRETO PRÉ-FABRICADO, DIMENSÕES 100X15X13X30 CM (COMPRIMENTO X BASE INFERIOR X BASE SUPERIOR X ALTURA), PARA VIAS URBANAS (USO VIÁRIO). AF_06/2016 | BI91: M | BK91: =IF(BR91>0,CHOOSE(MATCH(RegimeExecucao,{"Unitário","Global"},0),IF($A91="S",BR91/BN91,""),(BR91/BN91)*100),"") ->  | BN91: =IF(BR91>0,CHOOSE(MATCH(RegimeExecucao,{"Unitário","Global"},0),IF($A91="S",ROUND(P91,arredunit),""),ROUND(R91,arredtot)),"") ->  | BR91: 0
A92: S | B92: 0 | C92: 1 | D92: 9 | E92: 1 | F92: 0 | G92: 3 | H92: 0 | I92: 0 | J92: 3 | K92: Serviço | L92: 1.9.1.3. | M92: EXECUÇÃO DE SARJETA DE CONCRETO USINADO, MOLDADA IN LOCO EM TRECHO RETO, 30 CM BASE X 15 CM ALTURA. AF_06/2016 | N92: M | O92: 457.6 | P92: 41.21 | Q92: 18857.7 | R92: 18857.7 | S92: 0 | T92: 0 | U92: 0 | V92: 0 | W92: 0 | X92: 0 | AY92: 0 | AZ92: 0 | BA92: 0 | BB92: 0 | BC92: 0 | BD92: 0 | BF92: 1.9.1.3. | BH92: EXECUÇÃO DE SARJETA DE CONCRETO USINADO, MOLDADA IN LOCO EM TRECHO RETO, 30 CM BASE X 15 CM ALTURA. AF_06/2016 | BI92: M | BK92: =IF(BR92>0,CHOOSE(MATCH(RegimeExecucao,{"Unitário","Global"},0),IF($A92="S",BR92/BN92,""),(BR92/BN92)*100),"") ->  | BN92: =IF(BR92>0,CHOOSE(MATCH(RegimeExecucao,{"Unitário","Global"},0),IF($A92="S",ROUND(P92,arredunit),""),ROUND(R92,arredtot)),"") ->  | BR92: 0
A93: S | B93: 0 | C93: 1 | D93: 9 | E93: 1 | F93: 0 | G93: 4 | H93: 0 | I93: 0 | J93: 3 | K93: Serviço | L93: 1.9.1.4. | M93: PAVIMENTO EM PARALELEPIPEDO SOBRE COLCHAO DE AREIA REJUNTADO COM ARGAMASSA DE CIMENTO E AREIA NO TRAÇO 1:3 (PEDRAS PEQUENAS 30 A 35 PECAS POR M2) | N93: M2 | O93: 777.92 | P93: 61.22 | Q93: 47624.26 | R93: 47624.26 | S93: 0 | T93: 0 | U93: 0 | V93: 0 | W93: 0 | X93: 0 | AY93: 0 | AZ93: 0 | BA93: 0 | BB93: 0 | BC93: 0 | BD93: 0 | BF93: 1.9.1.4. | BH93: PAVIMENTO EM PARALELEPIPEDO SOBRE COLCHAO DE AREIA REJUNTADO COM ARGAMASSA DE CIMENTO E AREIA NO TRAÇO 1:3 (PEDRAS PEQUENAS 30 A 35 PECAS POR M2) | BI93: M2 | BK93: =IF(BR93>0,CHOOSE(MATCH(RegimeExecucao,{"Unitário","Global"},0),IF($A93="S",BR93/BN93,""),(BR93/BN93)*100),"") ->  | BN93: =IF(BR93>0,CHOOSE(MATCH(RegimeExecucao,{"Unitário","Global"},0),IF($A93="S",ROUND(P93,arredunit),""),ROUND(R93,arredtot)),"") ->  | BR93: 0
A94: 3 | B94: 4 | C94: 1 | D94: 9 | E94: 2 | F94: 0 | G94: 0 | H94: 4 | J94: 2 | K94: Nível 3 | L94: 1.9.2. | M94: CALÇADA | O94: 0 | P94: 0 | Q94: 32433.3 | R94: 32433.3 | S94: 0 | T94: 0 | U94: 0 | V94: 0 | W94: 0 | X94: 0 | AY94: 0 | AZ94: 0 | BA94: 0 | BB94: 0 | BC94: 0 | BD94: 0 | BF94: 1.9.2. | BH94: CALÇADA | BK94: =IF(BR94>0,CHOOSE(MATCH(RegimeExecucao,{"Unitário","Global"},0),IF($A94="S",BR94/BN94,""),(BR94/BN94)*100),"") ->  | BN94: =IF(BR94>0,CHOOSE(MATCH(RegimeExecucao,{"Unitário","Global"},0),IF($A94="S",ROUND(P94,arredunit),""),ROUND(R94,arredtot)),"") ->  | BR94: 0
A95: S | B95: 0 | C95: 1 | D95: 9 | E95: 2 | F95: 0 | G95: 1 | H95: 0 | I95: 0 | J95: 3 | K95: Serviço | L95: 1.9.2.1. | M95: PISO PODOTATIL DE CONCRETO - DIRECIONAL E ALERTA, *40 X 40 X 2,5* CM | N95: M2 | O95: 15.6 | P95: 90.58 | Q95: 1413.05 | R95: 1413.05 | S95: 0 | T95: 0 | U95: 0 | V95: 0 | W95: 0 | X95: 0 | AY95: 0 | AZ95: 0 | BA95: 0 | BB95: 0 | BC95: 0 | BD95: 0 | BF95: 1.9.2.1. | BH95: PISO PODOTATIL DE CONCRETO - DIRECIONAL E ALERTA, *40 X 40 X 2,5* CM | BI95: M2 | BK95: =IF(BR95>0,CHOOSE(MATCH(RegimeExecucao,{"Unitário","Global"},0),IF($A95="S",BR95/BN95,""),(BR95/BN95)*100),"") ->  | BN95: =IF(BR95>0,CHOOSE(MATCH(RegimeExecucao,{"Unitário","Global"},0),IF($A95="S",ROUND(P95,arredunit),""),ROUND(R95,arredtot)),"") ->  | BR95: 0
A96: S | B96: 0 | C96: 1 | D96: 9 | E96: 2 | F96: 0 | G96: 2 | H96: 0 | I96: 0 | J96: 3 | K96: Serviço | L96: 1.9.2.2. | M96: ALVENARIA DE EMBASAMENTO EM TIJOLOS CERAMICOS MACICOS 5X10X20CM, ASSENTADO COM ARGAMASSA TRACO 1:2:8 (CIMENTO, CAL E AREIA) | N96: M3 | O96: 8.99 | P96: 696.86 | Q96: 6264.77 | R96: 6264.77 | S96: 0 | T96: 0 | U96: 0 | V96: 0 | W96: 0 | X96: 0 | AY96: 0 | AZ96: 0 | BA96: 0 | BB96: 0 | BC96: 0 | BD96: 0 | BF96: 1.9.2.2. | BH96: ALVENARIA DE EMBASAMENTO EM TIJOLOS CERAMICOS MACICOS 5X10X20CM, ASSENTADO COM ARGAMASSA TRACO 1:2:8 (CIMENTO, CAL E AREIA) | BI96: M3 | BK96: =IF(BR96>0,CHOOSE(MATCH(RegimeExecucao,{"Unitário","Global"},0),IF($A96="S",BR96/BN96,""),(BR96/BN96)*100),"") ->  | BN96: =IF(BR96>0,CHOOSE(MATCH(RegimeExecucao,{"Unitário","Global"},0),IF($A96="S",ROUND(P96,arredunit),""),ROUND(R96,arredtot)),"") ->  | BR96: 0
A97: S | B97: 0 | C97: 1 | D97: 9 | E97: 2 | F97: 0 | G97: 3 | H97: 0 | I97: 0 | J97: 3 | K97: Serviço | L97: 1.9.2.3. | M97: EXECUÇÃO DE PASSEIO (CALÇADA) OU PISO DE CONCRETO COM CONCRETO MOLDADO IN LOCO, FEITO EM OBRA, ACABAMENTO CONVENCIONAL, NÃO ARMADO. AF_07/2016 | N97: M3 | O97: 38.22 | P97: 647.71 | Q97: 24755.48 | R97: 24755.48 | S97: 0 | T97: 0 | U97: 0 | V97: 0 | W97: 0 | X97: 0 | AY97: 0 | AZ97: 0 | BA97: 0 | BB97: 0 | BC97: 0 | BD97: 0 | BF97: 1.9.2.3. | BH97: EXECUÇÃO DE PASSEIO (CALÇADA) OU PISO DE CONCRETO COM CONCRETO MOLDADO IN LOCO, FEITO EM OBRA, ACABAMENTO CONVENCIONAL, NÃO ARMADO. AF_07/2016 | BI97: M3 | BK97: =IF(BR97>0,CHOOSE(MATCH(RegimeExecucao,{"Unitário","Global"},0),IF($A97="S",BR97/BN97,""),(BR97/BN97)*100),"") ->  | BN97: =IF(BR97>0,CHOOSE(MATCH(RegimeExecucao,{"Unitário","Global"},0),IF($A97="S",ROUND(P97,arredunit),""),ROUND(R97,arredtot)),"") ->  | BR97: 0
A98: 2 | B98: 10 | C98: 1 | D98: 10 | E98: 0 | F98: 0 | G98: 0 | H98: 26 | I98: 10 | J98: 1 | K98: Nível 2 | L98: 1.10. | M98: RUA PROJETADA 06 | O98: 0 | P98: 0 | Q98: 104311.12 | R98: 104311.12 | S98: 0 | T98: 0 | U98: 0 | V98: 0 | W98: 0 | X98: 0 | AY98: 0 | AZ98: 0 | BA98: 0 | BB98: 0 | BC98: 0 | BD98: 0 | BF98: 1.10. | BH98: RUA PROJETADA 06 | BK98: =IF(BR98>0,CHOOSE(MATCH(RegimeExecucao,{"Unitário","Global"},0),IF($A98="S",BR98/BN98,""),(BR98/BN98)*100),"") ->  | BN98: =IF(BR98>0,CHOOSE(MATCH(RegimeExecucao,{"Unitário","Global"},0),IF($A98="S",ROUND(P98,arredunit),""),ROUND(R98,arredtot)),"") ->  | BR98: 0
A99: 3 | B99: 5 | C99: 1 | D99: 10 | E99: 1 | F99: 0 | G99: 0 | H99: 9 | I99: 5 | J99: 2 | K99: Nível 3 | L99: 1.10.1. | M99: PAVIMENTAÇÃO | O99: 0 | P99: 0 | Q99: 80835.26 | R99: 80835.26 | S99: 0 | T99: 0 | U99: 0 | V99: 0 | W99: 0 | X99: 0 | AY99: 0 | AZ99: 0 | BA99: 0 | BB99: 0 | BC99: 0 | BD99: 0 | BF99: 1.10.1. | BH99: PAVIMENTAÇÃO | BK99: =IF(BR99>0,CHOOSE(MATCH(RegimeExecucao,{"Unitário","Global"},0),IF($A99="S",BR99/BN99,""),(BR99/BN99)*100),"") ->  | BN99: =IF(BR99>0,CHOOSE(MATCH(RegimeExecucao,{"Unitário","Global"},0),IF($A99="S",ROUND(P99,arredunit),""),ROUND(R99,arredtot)),"") ->  | BR99: 0
A100: S | B100: 0 | C100: 1 | D100: 10 | E100: 1 | F100: 0 | G100: 1 | H100: 0 | I100: 0 | J100: 3 | K100: Serviço | L100: 1.10.1.1. | M100: REGULARIZACAO E COMPACTACAO DE SUBLEITO ATE 20 CM DE ESPESSURA | N100: M2 | O100: 999.67 | P100: 1.7 | Q100: 1699.44 | R100: 1699.44 | S100: 0 | T100: 0 | U100: 0 | V100: 0 | W100: 0 | X100: 0 | AY100: 0 | AZ100: 0 | BA100: 0 | BB100: 0 | BC100: 0 | BD100: 0 | BF100: 1.10.1.1. | BH100: REGULARIZACAO E COMPACTACAO DE SUBLEITO ATE 20 CM DE ESPESSURA | BI100: M2 | BK100: =IF(BR100>0,CHOOSE(MATCH(RegimeExecucao,{"Unitário","Global"},0),IF($A100="S",BR100/BN100,""),(BR100/BN100)*100),"") ->  | BN100: =IF(BR100>0,CHOOSE(MATCH(RegimeExecucao,{"Unitário","Global"},0),IF($A100="S",ROUND(P100,arredunit),""),ROUND(R100,arredtot)),"") ->  | BR100: 0
A101: =CHOOSE(1+LOG(1+2*(K101="Meta")+4*(K101="Nível 2")+8*(K101="Nível 3")+16*(K101="Nível 4")+32*(K101="Serviço"),2),0,1,2,3,4,"S") -> S | B101: =IF(OR(A101="S",A101=0),0,IF(ISERROR(I101),H101,SMALL(H101:I101,1))) -> 0 | C101: 1 | D101: 10 | E101: 1 | F101: 0 | G101: 2 | H101: 0 | I101: 0 | J101: 3 | K101: Serviço | L101: 1.10.1.2. | M101: ASSENTAMENTO DE GUIA (MEIO-FIO) EM TRECHO RETO, CONFECCIONADA EM CONCRETO PRÉ-FABRICADO, DIMENSÕES 100X15X13X30 CM (COMPRIMENTO X BASE INFERIOR X BASE SUPERIOR X ALTURA), PARA VIAS URBANAS (USO VIÁRIO). AF_06/2016 | N101: M | O101: 292.38 | P101: 40.28 | Q101: 11777.07 | R101: 11777.07 | S101: =IF(AND($A101="S",COUNTIF($Z$13:$AW$13,mediçao-1)>0),SUM(OFFSET($Z101,0,0,1,MATCH(mediçao-1,$Z$13:$AW$13,0))),IF(AND(RegimeExecucao="Global",$R101>0,COUNTIF($Z$13:$AW$13,mediçao-1)>0),V101/$R101*100,0)) -> 0 | T101: =U101-S101 -> 0 | U101: =IF(AND($A101="S",COUNTIF($Z$13:$AW$13,mediçao)>0),SUM(OFFSET($Z101,0,0,1,MATCH(mediçao,$Z$13:$AW$13,0))),IF(AND(RegimeExecucao="Global",$R101>0,COUNTIF($Z$13:$AW$13,mediçao)>0),X101/$R101*100,0)) -> 0 | V101: 0 | W101: =X101-V101 -> 0 | X101: 0 | AY101: 0 | AZ101: =BA101-AY101 -> 0 | BA101: 0 | BB101: 0 | BC101: =BD101-BB101 -> 0 | BD101: 0 | BF101: =IF(BK101>0,L101,"") -> 1.10.1.2. | BH101: =IF(BK101>0,M101,"") -> ASSENTAMENTO DE GUIA (MEIO-FIO) EM TRECHO RETO, CONFECCIONADA EM CONCRETO PRÉ-FABRICADO, DIMENSÕES 100X15X13X30 CM (COMPRIMENTO X BASE INFERIOR X BASE SUPERIOR X ALTURA), PARA VIAS URBANAS (USO VIÁRIO). AF_06/2016 | BI101: =IF(BK101>0,N101,"") -> M | BK101: =IF(BR101>0,CHOOSE(MATCH(RegimeExecucao,{"Unitário","Global"},0),IF($A101="S",BR101/BN101,""),(BR101/BN101)*100),"") ->  | BN101: =IF(BR101>0,CHOOSE(MATCH(RegimeExecucao,{"Unitário","Global"},0),IF($A101="S",ROUND(P101,arredunit),""),ROUND(R101,arredtot)),"") ->  | BR101: 0
A102: S | B102: 0 | C102: 1 | D102: 10 | E102: 1 | F102: 0 | G102: 3 | H102: 0 | I102: 0 | J102: 3 | K102: Serviço | L102: 1.10.1.3. | M102: EXECUÇÃO DE SARJETA DE CONCRETO USINADO, MOLDADA IN LOCO EM TRECHO RETO, 30 CM BASE X 15 CM ALTURA. AF_06/2016 | N102: M | O102: 269.62 | P102: 41.21 | Q102: 11111.04 | R102: 11111.04 | S102: 0 | T102: 0 | U102: 0 | V102: 0 | W102: 0 | X102: 0 | AY102: 0 | AZ102: 0 | BA102: 0 | BB102: 0 | BC102: 0 | BD102: 0 | BF102: 1.10.1.3. | BH102: EXECUÇÃO DE SARJETA DE CONCRETO USINADO, MOLDADA IN LOCO EM TRECHO RETO, 30 CM BASE X 15 CM ALTURA. AF_06/2016 | BI102: M | BK102: =IF(BR102>0,CHOOSE(MATCH(RegimeExecucao,{"Unitário","Global"},0),IF($A102="S",BR102/BN102,""),(BR102/BN102)*100),"") ->  | BN102: =IF(BR102>0,CHOOSE(MATCH(RegimeExecucao,{"Unitário","Global"},0),IF($A102="S",ROUND(P102,arredunit),""),ROUND(R102,arredtot)),"") ->  | BR102: 0
A103: S | B103: 0 | C103: 1 | D103: 10 | E103: 1 | F103: 0 | G103: 4 | H103: 0 | I103: 0 | J103: 3 | K103: Serviço | L103: 1.10.1.4. | M103: PAVIMENTO EM PARALELEPIPEDO SOBRE COLCHAO DE AREIA REJUNTADO COM ARGAMASSA DE CIMENTO E AREIA NO TRAÇO 1:3 (PEDRAS PEQUENAS 30 A 35 PECAS POR M2) | N103: M2 | O103: 918.78 | P103: 61.22 | Q103: 56247.71 | R103: 56247.71 | S103: 0 | T103: 0 | U103: 0 | V103: 0 | W103: 0 | X103: 0 | AY103: 0 | AZ103: 0 | BA103: 0 | BB103: 0 | BC103: 0 | BD103: 0 | BF103: 1.10.1.4. | BH103: PAVIMENTO EM PARALELEPIPEDO SOBRE COLCHAO DE AREIA REJUNTADO COM ARGAMASSA DE CIMENTO E AREIA NO TRAÇO 1:3 (PEDRAS PEQUENAS 30 A 35 PECAS POR M2) | BI103: M2 | BK103: =IF(BR103>0,CHOOSE(MATCH(RegimeExecucao,{"Unitário","Global"},0),IF($A103="S",BR103/BN103,""),(BR103/BN103)*100),"") ->  | BN103: =IF(BR103>0,CHOOSE(MATCH(RegimeExecucao,{"Unitário","Global"},0),IF($A103="S",ROUND(P103,arredunit),""),ROUND(R103,arredtot)),"") ->  | BR103: 0
A104: 3 | B104: 4 | C104: 1 | D104: 10 | E104: 2 | F104: 0 | G104: 0 | H104: 4 | J104: 2 | K104: Nível 3 | L104: 1.10.2. | M104: CALÇADA | O104: 0 | P104: 0 | Q104: 23475.86 | R104: 23475.86 | S104: 0 | T104: 0 | U104: 0 | V104: 0 | W104: 0 | X104: 0 | AY104: 0 | AZ104: 0 | BA104: 0 | BB104: 0 | BC104: 0 | BD104: 0 | BF104: 1.10.2. | BH104: CALÇADA | BK104: =IF(BR104>0,CHOOSE(MATCH(RegimeExecucao,{"Unitário","Global"},0),IF($A104="S",BR104/BN104,""),(BR104/BN104)*100),"") ->  | BN104: =IF(BR104>0,CHOOSE(MATCH(RegimeExecucao,{"Unitário","Global"},0),IF($A104="S",ROUND(P104,arredunit),""),ROUND(R104,arredtot)),"") ->  | BR104: 0
A105: S | B105: 0 | C105: 1 | D105: 10 | E105: 2 | F105: 0 | G105: 1 | H105: 0 | I105: 0 | J105: 3 | K105: Serviço | L105: 1.10.2.1. | M105: PISO PODOTATIL DE CONCRETO - DIRECIONAL E ALERTA, *40 X 40 X 2,5* CM | N105: M2 | O105: 21.6 | P105: 90.58 | Q105: 1956.53 | R105: 1956.53 | S105: 0 | T105: 0 | U105: 0 | V105: 0 | W105: 0 | X105: 0 | AY105: 0 | AZ105: 0 | BA105: 0 | BB105: 0 | BC105: 0 | BD105: 0 | BF105: 1.10.2.1. | BH105: PISO PODOTATIL DE CONCRETO - DIRECIONAL E ALERTA, *40 X 40 X 2,5* CM | BI105: M2 | BK105: =IF(BR105>0,CHOOSE(MATCH(RegimeExecucao,{"Unitário","Global"},0),IF($A105="S",BR105/BN105,""),(BR105/BN105)*100),"") ->  | BN105: =IF(BR105>0,CHOOSE(MATCH(RegimeExecucao,{"Unitário","Global"},0),IF($A105="S",ROUND(P105,arredunit),""),ROUND(R105,arredtot)),"") ->  | BR105: 0
A106: S | B106: 0 | C106: 1 | D106: 10 | E106: 2 | F106: 0 | G106: 2 | H106: 0 | I106: 0 | J106: 3 | K106: Serviço | L106: 1.10.2.2. | M106: ALVENARIA DE EMBASAMENTO EM TIJOLOS CERAMICOS MACICOS 5X10X20CM, ASSENTADO COM ARGAMASSA TRACO 1:2:8 (CIMENTO, CAL E AREIA) | N106: M3 | O106: 5.32 | P106: 696.86 | Q106: 3707.3 | R106: 3707.3 | S106: 0 | T106: 0 | U106: 0 | V106: 0 | W106: 0 | X106: 0 | AY106: 0 | AZ106: 0 | BA106: 0 | BB106: 0 | BC106: 0 | BD106: 0 | BF106: 1.10.2.2. | BH106: ALVENARIA DE EMBASAMENTO EM TIJOLOS CERAMICOS MACICOS 5X10X20CM, ASSENTADO COM ARGAMASSA TRACO 1:2:8 (CIMENTO, CAL E AREIA) | BI106: M3 | BK106: =IF(BR106>0,CHOOSE(MATCH(RegimeExecucao,{"Unitário","Global"},0),IF($A106="S",BR106/BN106,""),(BR106/BN106)*100),"") ->  | BN106: =IF(BR106>0,CHOOSE(MATCH(RegimeExecucao,{"Unitário","Global"},0),IF($A106="S",ROUND(P106,arredunit),""),ROUND(R106,arredtot)),"") ->  | BR106: 0
A107: S | B107: 0 | C107: 1 | D107: 10 | E107: 2 | F107: 0 | G107: 3 | H107: 0 | I107: 0 | J107: 3 | K107: Serviço | L107: 1.10.2.3. | M107: EXECUÇÃO DE PASSEIO (CALÇADA) OU PISO DE CONCRETO COM CONCRETO MOLDADO IN LOCO, FEITO EM OBRA, ACABAMENTO CONVENCIONAL, NÃO ARMADO. AF_07/2016 | N107: M3 | O107: 27.5 | P107: 647.71 | Q107: 17812.03 | R107: 17812.03 | S107: 0 | T107: 0 | U107: 0 | V107: 0 | W107: 0 | X107: 0 | AY107: 0 | AZ107: 0 | BA107: 0 | BB107: 0 | BC107: 0 | BD107: 0 | BF107: 1.10.2.3. | BH107: EXECUÇÃO DE PASSEIO (CALÇADA) OU PISO DE CONCRETO COM CONCRETO MOLDADO IN LOCO, FEITO EM OBRA, ACABAMENTO CONVENCIONAL, NÃO ARMADO. AF_07/2016 | BI107: M3 | BK107: =IF(BR107>0,CHOOSE(MATCH(RegimeExecucao,{"Unitário","Global"},0),IF($A107="S",BR107/BN107,""),(BR107/BN107)*100),"") ->  | BN107: =IF(BR107>0,CHOOSE(MATCH(RegimeExecucao,{"Unitário","Global"},0),IF($A107="S",ROUND(P107,arredunit),""),ROUND(R107,arredtot)),"") ->  | BR107: 0
A108: 2 | B108: 10 | C108: 1 | D108: 11 | E108: 0 | F108: 0 | G108: 0 | H108: 16 | I108: 10 | J108: 1 | K108: Nível 2 | L108: 1.11. | M108: RUA PROJETADA 04 | O108: 0 | P108: 0 | Q108: 121410.03 | R108: 121410.03 | S108: 0 | T108: 0 | U108: 0 | V108: 0 | W108: 0 | X108: 0 | AY108: 0 | AZ108: 0 | BA108: 0 | BB108: 0 | BC108: 0 | BD108: 0 | BF108: 1.11. | BH108: RUA PROJETADA 04 | BK108: =IF(BR108>0,CHOOSE(MATCH(RegimeExecucao,{"Unitário","Global"},0),IF($A108="S",BR108/BN108,""),(BR108/BN108)*100),"") ->  | BN108: =IF(BR108>0,CHOOSE(MATCH(RegimeExecucao,{"Unitário","Global"},0),IF($A108="S",ROUND(P108,arredunit),""),ROUND(R108,arredtot)),"") ->  | BR108: 0
A109: 3 | B109: 5 | C109: 1 | D109: 11 | E109: 1 | F109: 0 | G109: 0 | H109: 9 | I109: 5 | J109: 2 | K109: Nível 3 | L109: 1.11.1. | M109: PAVIMENTAÇÃO | O109: 0 | P109: 0 | Q109: 88328.71 | R109: 88328.71 | S109: 0 | T109: 0 | U109: 0 | V109: 0 | W109: 0 | X109: 0 | AY109: 0 | AZ109: 0 | BA109: 0 | BB109: 0 | BC109: 0 | BD109: 0 | BF109: 1.11.1. | BH109: PAVIMENTAÇÃO | BK109: =IF(BR109>0,CHOOSE(MATCH(RegimeExecucao,{"Unitário","Global"},0),IF($A109="S",BR109/BN109,""),(BR109/BN109)*100),"") ->  | BN109: =IF(BR109>0,CHOOSE(MATCH(RegimeExecucao,{"Unitário","Global"},0),IF($A109="S",ROUND(P109,arredunit),""),ROUND(R109,arredtot)),"") ->  | BR109: 0
A110: S | B110: 0 | C110: 1 | D110: 11 | E110: 1 | F110: 0 | G110: 1 | H110: 0 | I110: 0 | J110: 3 | K110: Serviço | L110: 1.11.1.1. | M110: REGULARIZACAO E COMPACTACAO DE SUBLEITO ATE 20 CM DE ESPESSURA | N110: M2 | O110: 932 | P110: 1.7 | Q110: 1584.4 | R110: 1584.4 | S110: 0 | T110: 0 | U110: 0 | V110: 0 | W110: 0 | X110: 0 | AY110: 0 | AZ110: 0 | BA110: 0 | BB110: 0 | BC110: 0 | BD110: 0 | BF110: 1.11.1.1. | BH110: REGULARIZACAO E COMPACTACAO DE SUBLEITO ATE 20 CM DE ESPESSURA | BI110: M2 | BK110: =IF(BR110>0,CHOOSE(MATCH(RegimeExecucao,{"Unitário","Global"},0),IF($A110="S",BR110/BN110,""),(BR110/BN110)*100),"") ->  | BN110: =IF(BR110>0,CHOOSE(MATCH(RegimeExecucao,{"Unitário","Global"},0),IF($A110="S",ROUND(P110,arredunit),""),ROUND(R110,arredtot)),"") ->  | BR110: 0
A111: S | B111: 0 | C111: 1 | D111: 11 | E111: 1 | F111: 0 | G111: 2 | H111: 0 | I111: 0 | J111: 3 | K111: Serviço | L111: 1.11.1.2. | M111: ASSENTAMENTO DE GUIA (MEIO-FIO) EM TRECHO RETO, CONFECCIONADA EM CONCRETO PRÉ-FABRICADO, DIMENSÕES 100X15X13X30 CM (COMPRIMENTO X BASE INFERIOR X BASE SUPERIOR X ALTURA), PARA VIAS URBANAS (USO VIÁRIO). AF_06/2016 | N111: M | O111: 472.74 | P111: 40.28 | Q111: 19041.97 | R111: 19041.97 | S111: 0 | T111: 0 | U111: 0 | V111: 0 | W111: 0 | X111: 0 | AY111: 0 | AZ111: 0 | BA111: 0 | BB111: 0 | BC111: 0 | BD111: 0 | BF111: 1.11.1.2. | BH111: ASSENTAMENTO DE GUIA (MEIO-FIO) EM TRECHO RETO, CONFECCIONADA EM CONCRETO PRÉ-FABRICADO, DIMENSÕES 100X15X13X30 CM (COMPRIMENTO X BASE INFERIOR X BASE SUPERIOR X ALTURA), PARA VIAS URBANAS (USO VIÁRIO). AF_06/2016 | BI111: M | BK111: =IF(BR111>0,CHOOSE(MATCH(RegimeExecucao,{"Unitário","Global"},0),IF($A111="S",BR111/BN111,""),(BR111/BN111)*100),"") ->  | BN111: =IF(BR111>0,CHOOSE(MATCH(RegimeExecucao,{"Unitário","Global"},0),IF($A111="S",ROUND(P111,arredunit),""),ROUND(R111,arredtot)),"") ->  | BR111: 0
A112: S | B112: 0 | C112: 1 | D112: 11 | E112: 1 | F112: 0 | G112: 3 | H112: 0 | I112: 0 | J112: 3 | K112: Serviço | L112: 1.11.1.3. | M112: EXECUÇÃO DE SARJETA DE CONCRETO USINADO, MOLDADA IN LOCO EM TRECHO RETO, 30 CM BASE X 15 CM ALTURA. AF_06/2016 | N112: M | O112: 466 | P112: 41.21 | Q112: 19203.86 | R112: 19203.86 | S112: 0 | T112: 0 | U112: 0 | V112: 0 | W112: 0 | X112: 0 | AY112: 0 | AZ112: 0 | BA112: 0 | BB112: 0 | BC112: 0 | BD112: 0 | BF112: 1.11.1.3. | BH112: EXECUÇÃO DE SARJETA DE CONCRETO USINADO, MOLDADA IN LOCO EM TRECHO RETO, 30 CM BASE X 15 CM ALTURA. AF_06/2016 | BI112: M | BK112: =IF(BR112>0,CHOOSE(MATCH(RegimeExecucao,{"Unitário","Global"},0),IF($A112="S",BR112/BN112,""),(BR112/BN112)*100),"") ->  | BN112: =IF(BR112>0,CHOOSE(MATCH(RegimeExecucao,{"Unitário","Global"},0),IF($A112="S",ROUND(P112,arredunit),""),ROUND(R112,arredtot)),"") ->  | BR112: 0
A113: S | B113: 0 | C113: 1 | D113: 11 | E113: 1 | F113: 0 | G113: 4 | H113: 0 | I113: 0 | J113: 3 | K113: Serviço | L113: 1.11.1.4. | M113: PAVIMENTO EM PARALELEPIPEDO SOBRE COLCHAO DE AREIA REJUNTADO COM ARGAMASSA DE CIMENTO E AREIA NO TRAÇO 1:3 (PEDRAS PEQUENAS 30 A 35 PECAS POR M2) | N113: M2 | O113: 792.2 | P113: 61.22 | Q113: 48498.48 | R113: 48498.48 | S113: 0 | T113: 0 | U113: 0 | V113: 0 | W113: 0 | X113: 0 | AY113: 0 | AZ113: 0 | BA113: 0 | BB113: 0 | BC113: 0 | BD113: 0 | BF113: 1.11.1.4. | BH113: PAVIMENTO EM PARALELEPIPEDO SOBRE COLCHAO DE AREIA REJUNTADO COM ARGAMASSA DE CIMENTO E AREIA NO TRAÇO 1:3 (PEDRAS PEQUENAS 30 A 35 PECAS POR M2) | BI113: M2 | BK113: =IF(BR113>0,CHOOSE(MATCH(RegimeExecucao,{"Unitário","Global"},0),IF($A113="S",BR113/BN113,""),(BR113/BN113)*100),"") ->  | BN113: =IF(BR113>0,CHOOSE(MATCH(RegimeExecucao,{"Unitário","Global"},0),IF($A113="S",ROUND(P113,arredunit),""),ROUND(R113,arredtot)),"") ->  | BR113: 0
A114: 3 | B114: 4 | C114: 1 | D114: 11 | E114: 2 | F114: 0 | G114: 0 | H114: 4 | J114: 2 | K114: Nível 3 | L114: 1.11.2. | M114: CALÇADA | O114: 0 | P114: 0 | Q114: 33081.32 | R114: 33081.32 | S114: 0 | T114: 0 | U114: 0 | V114: 0 | W114: 0 | X114: 0 | AY114: 0 | AZ114: 0 | BA114: 0 | BB114: 0 | BC114: 0 | BD114: 0 | BF114: 1.11.2. | BH114: CALÇADA | BK114: =IF(BR114>0,CHOOSE(MATCH(RegimeExecucao,{"Unitário","Global"},0),IF($A114="S",BR114/BN114,""),(BR114/BN114)*100),"") ->  | BN114: =IF(BR114>0,CHOOSE(MATCH(RegimeExecucao,{"Unitário","Global"},0),IF($A114="S",ROUND(P114,arredunit),""),ROUND(R114,arredtot)),"") ->  | BR114: 0
A115: S | B115: 0 | C115: 1 | D115: 11 | E115: 2 | F115: 0 | G115: 1 | H115: 0 | I115: 0 | J115: 3 | K115: Serviço | L115: 1.11.2.1. | M115: PISO PODOTATIL DE CONCRETO - DIRECIONAL E ALERTA, *40 X 40 X 2,5* CM | N115: M2 | O115: 15.6 | P115: 90.58 | Q115: 1413.05 | R115: 1413.05 | S115: 0 | T115: 0 | U115: 0 | V115: 0 | W115: 0 | X115: 0 | AY115: 0 | AZ115: 0 | BA115: 0 | BB115: 0 | BC115: 0 | BD115: 0 | BF115: 1.11.2.1. | BH115: PISO PODOTATIL DE CONCRETO - DIRECIONAL E ALERTA, *40 X 40 X 2,5* CM | BI115: M2 | BK115: =IF(BR115>0,CHOOSE(MATCH(RegimeExecucao,{"Unitário","Global"},0),IF($A115="S",BR115/BN115,""),(BR115/BN115)*100),"") ->  | BN115: =IF(BR115>0,CHOOSE(MATCH(RegimeExecucao,{"Unitário","Global"},0),IF($A115="S",ROUND(P115,arredunit),""),ROUND(R115,arredtot)),"") ->  | BR115: 0
A116: S | B116: 0 | C116: 1 | D116: 11 | E116: 2 | F116: 0 | G116: 2 | H116: 0 | I116: 0 | J116: 3 | K116: Serviço | L116: 1.11.2.2. | M116: ALVENARIA DE EMBASAMENTO EM TIJOLOS CERAMICOS MACICOS 5X10X20CM, ASSENTADO COM ARGAMASSA TRACO 1:2:8 (CIMENTO, CAL E AREIA) | N116: M3 | O116: 9.26 | P116: 696.86 | Q116: 6452.92 | R116: 6452.92 | S116: 0 | T116: 0 | U116: 0 | V116: 0 | W116: 0 | X116: 0 | AY116: 0 | AZ116: 0 | BA116: 0 | BB116: 0 | BC116: 0 | BD116: 0 | BF116: 1.11.2.2. | BH116: ALVENARIA DE EMBASAMENTO EM TIJOLOS CERAMICOS MACICOS 5X10X20CM, ASSENTADO COM ARGAMASSA TRACO 1:2:8 (CIMENTO, CAL E AREIA) | BI116: M3 | BK116: =IF(BR116>0,CHOOSE(MATCH(RegimeExecucao,{"Unitário","Global"},0),IF($A116="S",BR116/BN116,""),(BR116/BN116)*100),"") ->  | BN116: =IF(BR116>0,CHOOSE(MATCH(RegimeExecucao,{"Unitário","Global"},0),IF($A116="S",ROUND(P116,arredunit),""),ROUND(R116,arredtot)),"") ->  | BR116: 0
A117: S | B117: 0 | C117: 1 | D117: 11 | E117: 2 | F117: 0 | G117: 3 | H117: 0 | I117: 0 | J117: 3 | K117: Serviço | L117: 1.11.2.3. | M117: EXECUÇÃO DE PASSEIO (CALÇADA) OU PISO DE CONCRETO COM CONCRETO MOLDADO IN LOCO, FEITO EM OBRA, ACABAMENTO CONVENCIONAL, NÃO ARMADO. AF_07/2016 | N117: M3 | O117: 38.93 | P117: 647.71 | Q117: 25215.35 | R117: 25215.35 | S117: 0 | T117: 0 | U117: 0 | V117: 0 | W117: 0 | X117: 0 | AY117: 0 | AZ117: 0 | BA117: 0 | BB117: 0 | BC117: 0 | BD117: 0 | BF117: 1.11.2.3. | BH117: EXECUÇÃO DE PASSEIO (CALÇADA) OU PISO DE CONCRETO COM CONCRETO MOLDADO IN LOCO, FEITO EM OBRA, ACABAMENTO CONVENCIONAL, NÃO ARMADO. AF_07/2016 | BI117: M3 | BK117: =IF(BR117>0,CHOOSE(MATCH(RegimeExecucao,{"Unitário","Global"},0),IF($A117="S",BR117/BN117,""),(BR117/BN117)*100),"") ->  | BN117: =IF(BR117>0,CHOOSE(MATCH(RegimeExecucao,{"Unitário","Global"},0),IF($A117="S",ROUND(P117,arredunit),""),ROUND(R117,arredtot)),"") ->  | BR117: 0
A118: 2 | B118: 6 | C118: 1 | D118: 12 | E118: 0 | F118: 0 | G118: 0 | H118: 6 | J118: 1 | K118: Nível 2 | L118: 1.12. | M118: SINALIZAÇÃO | O118: 0 | P118: 0 | Q118: 34537.96 | R118: 34537.96 | S118: 0 | T118: 0 | U118: 0 | V118: 0 | W118: 0 | X118: 0 | AY118: 0 | AZ118: 0 | BA118: 0 | BB118: 0 | BC118: 0 | BD118: 0 | BF118: 1.12. | BH118: SINALIZAÇÃO | BK118: =IF(BR118>0,CHOOSE(MATCH(RegimeExecucao,{"Unitário","Global"},0),IF($A118="S",BR118/BN118,""),(BR118/BN118)*100),"") ->  | BN118: =IF(BR118>0,CHOOSE(MATCH(RegimeExecucao,{"Unitário","Global"},0),IF($A118="S",ROUND(P118,arredunit),""),ROUND(R118,arredtot)),"") ->  | BR118: 0
A119: S | B119: 0 | C119: 1 | D119: 12 | E119: 0 | F119: 0 | G119: 1 | H119: 0 | I119: 0 | J119: 3 | K119: Serviço | L119: 1.12.0.1. | M119: PLACA ESMALTADA PARA IDENTIFICAÇÃO NR DE RUA, DIMENSÕES 45X25CM | N119: UN | O119: 20 | P119: 99.38 | Q119: 1987.6 | R119: 1987.6 | S119: 0 | T119: 0 | U119: 0 | V119: 0 | W119: 0 | X119: 0 | AY119: 0 | AZ119: 0 | BA119: 0 | BB119: 0 | BC119: 0 | BD119: 0 | BF119: 1.12.0.1. | BH119: PLACA ESMALTADA PARA IDENTIFICAÇÃO NR DE RUA, DIMENSÕES 45X25CM | BI119: UN | BK119: =IF(BR119>0,CHOOSE(MATCH(RegimeExecucao,{"Unitário","Global"},0),IF($A119="S",BR119/BN119,""),(BR119/BN119)*100),"") ->  | BN119: =IF(BR119>0,CHOOSE(MATCH(RegimeExecucao,{"Unitário","Global"},0),IF($A119="S",ROUND(P119,arredunit),""),ROUND(R119,arredtot)),"") ->  | BR119: 0
A120: S | B120: 0 | C120: 1 | D120: 12 | E120: 0 | F120: 0 | G120: 2 | H120: 0 | I120: 0 | J120: 3 | K120: Serviço | L120: 1.12.0.2. | M120: Fornecimento e implantação de placa de regulamentação em aço D = 0,60 m - película retrorrefletiva tipo I e SI | N120: UND | O120: 48 | P120: 211.19 | Q120: 10137.12 | R120: 10137.12 | S120: 0 | T120: 0 | U120: 0 | V120: 0 | W120: 0 | X120: 0 | AY120: 0 | AZ120: 0 | BA120: 0 | BB120: 0 | BC120: 0 | BD120: 0 | BF120: 1.12.0.2. | BH120: Fornecimento e implantação de placa de regulamentação em aço D = 0,60 m - película retrorrefletiva tipo I e SI | BI120: UND | BK120: =IF(BR120>0,CHOOSE(MATCH(RegimeExecucao,{"Unitário","Global"},0),IF($A120="S",BR120/BN120,""),(BR120/BN120)*100),"") ->  | BN120: =IF(BR120>0,CHOOSE(MATCH(RegimeExecucao,{"Unitário","Global"},0),IF($A120="S",ROUND(P120,arredunit),""),ROUND(R120,arredtot)),"") ->  | BR120: 0
A121: S | B121: 0 | C121: 1 | D121: 12 | E121: 0 | F121: 0 | G121: 3 | H121: 0 | I121: 0 | J121: 3 | K121: Serviço | L121: 1.12.0.3. | M121: Fornecimento e implantação de placa de regulamentação em aço, R1 lado 0,248 m - película retrorrefletiva tipo I e SI | N121: UND | O121: 22 | P121: 260.88 | Q121: 5739.36 | R121: 5739.36 | S121: 0 | T121: 0 | U121: 0 | V121: 0 | W121: 0 | X121: 0 | AY121: 0 | AZ121: 0 | BA121: 0 | BB121: 0 | BC121: 0 | BD121: 0 | BF121: 1.12.0.3. | BH121: Fornecimento e implantação de placa de regulamentação em aço, R1 lado 0,248 m - película retrorrefletiva tipo I e SI | BI121: UND | BK121: =IF(BR121>0,CHOOSE(MATCH(RegimeExecucao,{"Unitário","Global"},0),IF($A121="S",BR121/BN121,""),(BR121/BN121)*100),"") ->  | BN121: =IF(BR121>0,CHOOSE(MATCH(RegimeExecucao,{"Unitário","Global"},0),IF($A121="S",ROUND(P121,arredunit),""),ROUND(R121,arredtot)),"") ->  | BR121: 0
A122: S | B122: 0 | C122: 1 | D122: 12 | E122: 0 | F122: 0 | G122: 4 | H122: 0 | I122: 0 | J122: 3 | K122: Serviço | L122: 1.12.0.4. | M122: Fornecimento e implantação de suporte metálico galvanizado para placa de regulamentação - D = 0,60 m | N122: UND | O122: 48 | P122: 233.55 | Q122: 11210.4 | R122: 11210.4 | S122: 0 | T122: 0 | U122: 0 | V122: 0 | W122: 0 | X122: 0 | AY122: 0 | AZ122: 0 | BA122: 0 | BB122: 0 | BC122: 0 | BD122: 0 | BF122: 1.12.0.4. | BH122: Fornecimento e implantação de suporte metálico galvanizado para placa de regulamentação - D = 0,60 m | BI122: UND | BK122: =IF(BR122>0,CHOOSE(MATCH(RegimeExecucao,{"Unitário","Global"},0),IF($A122="S",BR122/BN122,""),(BR122/BN122)*100),"") ->  | BN122: =IF(BR122>0,CHOOSE(MATCH(RegimeExecucao,{"Unitário","Global"},0),IF($A122="S",ROUND(P122,arredunit),""),ROUND(R122,arredtot)),"") ->  | BR122: 0
A123: S | B123: 0 | C123: 1 | D123: 12 | E123: 0 | F123: 0 | G123: 5 | H123: 0 | I123: 0 | J123: 3 | K123: Serviço | L123: 1.12.0.5. | M123: Fornecimento e implantação de suporte metálico galvanizado para placa de regulamentação - R1 - lado de 0,248 m | N123: UND | O123: 22 | P123: 248.34 | Q123: 5463.48 | R123: 5463.48 | S123: 0 | T123: 0 | U123: 0 | V123: 0 | W123: 0 | X123: 0 | AY123: 0 | AZ123: 0 | BA123: 0 | BB123: 0 | BC123: 0 | BD123: 0 | BF123: 1.12.0.5. | BH123: Fornecimento e implantação de suporte metálico galvanizado para placa de regulamentação - R1 - lado de 0,248 m | BI123: UND | BK123: =IF(BR123>0,CHOOSE(MATCH(RegimeExecucao,{"Unitário","Global"},0),IF($A123="S",BR123/BN123,""),(BR123/BN123)*100),"") ->  | BN123: =IF(BR123>0,CHOOSE(MATCH(RegimeExecucao,{"Unitário","Global"},0),IF($A123="S",ROUND(P123,arredunit),""),ROUND(R123,arredtot)),"") ->  | BR123: 0
A124: -1 | B124: 0 | C124: 0 | D124: 0 | E124: 0 | F124: 0 | G124: 0
CC125: FALSE
L126: Obs:
L128: Obs 2: | M128: =IF(OR(AND($R$3=FALSE,$S$3=FALSE,RegimeExecucao="Global"),AND($O$3=FALSE,$P$3=FALSE,$R$3=FALSE,$S$3=FALSE)),"Não foi considerado arredondamento nos valores da planilha.",CONCATENATE("Foi considerado arredondamento de duas casas decimais para ",IF(AND(RegimeExecucao="Unitário",$O$3=TRUE),"Quantidade; ",""),IF(AND(RegimeExecucao="Unitário",$P$3=TRUE),"Preço unitário; ",""),IF($R$3=TRUE,"Preço total; ",""),,IF($S$3=TRUE,"Medição.",""))) -> Foi considerado arredondamento de duas casas decimais para Preço total; Medição.
L129: Os serviços medidos informados neste BM encontram-se concluídos, estão em conformidade com os projetos e especificações aceitos pela CAIXA e foram executados de acordo com as normas técnicas. | CC129: Os serviços medidos informados neste BM encontram-se concluídos, estão em conformidade com os projetos e especificações aceitos pela CAIXA e foram executados de acordo com as normas técnicas.
L130: =DADOS!$D$23&", "&TEXT(TODAY(),"dd")&" de "&TEXT(TODAY(),"mmmm")&" de "&TEXT(TODAY(),"aaaa") -> Vertentes/PE, 24 de fevereiro de 2022 | CC130: 1. A vistoria, no caso de obras, tem como principal objetivo observar o seu estágio atual de andamento e se o que é visualizável em campo é compatível com o avanço físico do empreendimento atestado no BM da fiscalização técnica do tomador. 2. A vistoria técnica é amparada exclusivamente em constatação visual, sem qualquer apoio de instrumentos, testes e/ou ensaios e a precisão esperada das informações é compatível com essa metodologia. 3. O ateste, a medição, a fiscalização e a aceitação dos serviços realizados e materiais/equipamentos utilizados na obra são de responsabilidade do profissional indicado pelo agente promotor/tomador como Fiscal da Obra, conforme ART específica.
L131: Local e Data | P131: Resp. Técnico Fiscalização: | R131: =IF(DADOS!A50="","",DADOS!A50) ->  | V131: Resp. Técnico Fiscalização: | W131: =DADOS!A43 -> Sofia Ximenes Lopes | BB131: Profissional CAIXA: | BI131: Profissional CAIXA: | BN131: =BC131 -> 0
P132: CREA/CAU: | R132: =DADOS!C50 -> 0 | V132: CREA/CAU: | W132: =DADOS!C43 -> 1816729965 | BB132: Matrícula: | BI132: Matrícula: | BN132: =BC132 -> 0
P133: ART/RRT: | R133: =DADOS!D50 -> 0 | V133: ART/RRT: | W133: =DADOS!D43 -> PE20190347838 | BB133: CREA/CAU: | BI133: CREA/CAU: | BN133: =BC133 -> 0
